{"text_format":"1","workbook":"xlsx","n_sheets":18,"sheets":["PORTADA","MENU","NOMINA","ANIVERSARIO","FSBC","SBC","DSDI","RIMSS","RISR_IMSS","EMISIONM","EMISIONB","RESUMEN IMSS","CEDULA","TARIFA","GENERALES1","GENERAL","CATALOGO","c_Estado"],"not_rendered":{"charts":0,"images":20,"macros":1,"external_links":0,"defined_names":38,"comments":2,"pivot_tables":0},"unopened":[],"bounds":{"document_bytes":16777216,"sheet_cells":100000,"rows_first":2000,"rows_last":500,"rows_between":2000,"halvings":0,"cell_chars":16384,"cell_head_chars":4096},"cells_cut":0,"cells_raw":0,"read":"whole","date_system":"1900"}

{"sheet":"PORTADA","index":0,"n_rows":93,"n_cols":18,"rows_kept":93,"cut":false,"hidden":false,"merged":[[1,1,10,9],[11,1,11,9],[12,1,26,9]]}
[]
[null,14896532]
[]
[]
[]
[]
[]
[]
[]
[]
[]
[null,"www.acfmsc.com"]
[null,14896532]
[]
[]
[]
[]
[]
[]
[]
[]
[]
[]
[]
[]
[]
[]
[]
[]
[]
[]
[]
[]
[]
[]
[]
[]
[]
[]
[]
[]
[]
[]
[]
[]
[]
[]
[]
[]
[]
[]
[]
[]
[]
[]
[]
[]
[]
[]
[]
[]
[]
[]
[]
[]
[]
[]
[]
[]
[]
[]
[]
[]
[]
[]
[]
[]
[]
[]
[]
[]
[]
[]
[]
[]
[]
[]
[null,null,null,null,null,null,null,null,null,null,null,null,null,null,null,null,null,"LEN2285"]
[]
[]
[]
[]
[null,null,null,null,null,null,null,null,null,null,null,null,null,null,null,null,null,"LEN2285"]

{"sheet":"MENU","index":1,"n_rows":18,"n_cols":3,"rows_kept":18,"cut":false,"hidden":true,"merged":[]}
[]
[]
[]
[]
[null,"Descripción","Nombre de la hoja"]
[null,"Importar XML de nómina","NOMINA"]
[null,"Determinación del aniversario del trabajador","ANIVERSARIO"]
[null,"Disposiciones para determinar el SBC","FSBC"]
[null,"Determinación del salario base de cotización","SBC"]
[null,"Determinación del salario diario integrado","SDI"]
[null,"Determinación de la retención del IMSS","RIMSS"]
[null,"Retención de ISR e IMSS","RISR_IMSS"]
[null,"Determinación de la cuota obrero patronal MENSUAL","EMISIONM"]
[null,"Determinación de la cuota obrero patronal BIMESTRAL","EMISIONB"]
[null,"Resumen cuotas obrego patronales","RESUMEN IMSS"]
[null,"Determinación de diferencias","CEDULA"]
[null,"Tarifa ISR 2025","TARIFA"]
[null,"Datos generales para los cálculos","GENERALES1"]

{"sheet":"NOMINA","index":2,"n_rows":5,"n_cols":72,"rows_kept":5,"cut":false,"hidden":true,"merged":[[3,51,3,52],[3,53,3,56],[3,57,3,61],[3,62,3,66],[3,67,3,69]]}
[null,null,null,null,null,null,null,null,null,null,null,null,null,null,null,null,null,null,null,null,null,null,null,null,null,null,null,null,null,{"$f":"IF(AND(AA6>=2,AA6<=4,AE6>=1,AE6<=8),0,1)","v":1}]
[]
[]
[null,null,null,null,null,null,null,null,null,null,null,null,null,null,null,null,null,null,null,null,null,null,null,null,null,null,null,null,null,null,null,null,null,null,null,null,null,null,null,null,null,null,null,null,null,null,null,null,null,null,null,"Venta acciones",null,"Tiempo extra",null,null,null,"Jubilaciones, pensiones, retiro",null,null,null,null,"Pagos por separación",null,null,null,null,"Incapacidades"]
[null,"Fecha de emisión","Fecha de timbrado","UUID","Concepto","Serie","Folio","Forma de pago","Metodo de pago","Moneda","Registro patronal","Nombre del patron","Riesgo de puesto","Concepto riesgo de puesto (este dato no pertenece al XML)","No. De empleado","Nombre del empleado","Departamento","Puesto","Clave de la entidad federrativa","Estado (este dato no pertenece al XML)","CURP","RFC","No. SS","Fecha inicio relación laboral","Salario diario integrado","Salario base de cotización","Tipo de regimen","Tipo de régimen (este dato no pertenece al XML)","Tipo de jornada","Tipo de jornada (este dato no pertenece al XML)","Tipo de contrato","Tipo de contrato (este dato no pertenece al XML)","Antigüedad","Fecha inicial pago","Fecha final pago","Fecha de pago","Periodicidad de pago","Periodicidad de pago  (este dato no pertenece al XML)","Clave de percepción","Percepción","Percepción de acuerdo al catálogo del SAT  (este dato no pertenece al XML)","Percepción exenta","Percepción gravado","Clave de deducción","Deducción","Deducción de acuerdo al catálogo del SAT  (este dato no pertenece al XML)","Importe deducción","Total del comprobante","Tipo de relación","UUID tipo de relación","Subsidio al empleo causado","Valor de mercado","Precio al otorgarse","Días","Tipo de horas","Horas extras","Importe pagado","Total en una sola exhibición","Total parcialidad","Monto diario","Ingreso acumulable","Ingreso no acumulable","Total pagado","No. de años de servicio","Último sueldo mensual ordinario","Ingreso acumulable","Ingreso no acumulable","Días de incapacidad","Tipo de incapacidad","Importe monetario","Dìas pagados","Ruta"]

{"sheet":"ANIVERSARIO","index":3,"n_rows":10,"n_cols":8,"rows_kept":10,"cut":false,"hidden":true,"merged":[[9,7,9,9]]}
[]
[null,"Determinación del factor de integración en partes fijas (antes de generar el reporte capture información en las celdas y columnas de color verde)"]
[]
[null,"Fecha inicial de pago"]
[null,"Fecha final de pago"]
[null,"Fecha de cálculo del aniversario"]
[null,"Días de aguinaldo"]
[null,"% Prima vacacional"]
[]
[null,null,null,null,null,null,null,"Factor de integración"]

{"sheet":"FSBC","index":4,"n_rows":29,"n_cols":7,"rows_kept":29,"cut":false,"hidden":true,"merged":[[19,1,19,4],[20,1,20,4],[1,1,1,2],[11,1,11,4],[12,1,12,4],[13,1,13,4],[14,1,14,4],[18,1,18,4],[6,1,6,5],[7,1,7,4],[8,1,8,4],[9,1,9,4],[10,1,10,4],[24,1,24,4],[25,1,25,4],[26,1,26,4],[27,1,27,4],[28,1,28,5]]}
[]
[null,"Solo capture información en las celdas de color verde"]
[]
[]
[null,null,null,null,"Valor de la UMA",117.31]
[null,null,null,null,"Salario diario del trabajador",380]
[null,"Artículo 27 LSS. El salario base de cotización se integra con los pagos hechos en efectivo por cuota diaria, gratificaciones, percepciones, alimentación, habitación, primas, comisiones, prestaciones en especie y cualquiera otra cantidad o prestación que se entregue al trabajador por su trabajo. Se excluyen como integrantes del salario base de cotización, dada su naturaleza, los siguientes conceptos:"]
[null,"I.  Los instrumentos de trabajo tales como herramientas, ropa y otros similares",null,null,null,"https://dof.gob.mx/nota_detalle.php?codigo=5721189&fecha=22/03/2024#gsc.tab=0"]
[null,"II. El ahorro, cuando se integre por un depósito de cantidad semanaria, quincenal o mensual igual del trabajador y de la empresa; si se constituye en forma diversa o puede el trabajador retirarlo más de dos veces al año, integrará salario; tampoco se tomarán en cuenta las cantidades otorgadas por el patrón para fines sociales de carácter sindical."]
[null,"Artículo 93 LISR. No se pagará el impuesto sobre la renta por la obtención de los siguientes ingresos:\nXI. Los provenientes de cajas de ahorro de trabajadores y de fondos de ahorro establecidos por las empresas para sus trabajadores cuando reúnan los requisitos de deducibilidad del Título II de esta Ley o, en su caso, del presente Título.\n\nRequisitos.\nQue sean otorgados en forma general a todos los trabajadores\nEl monto del patrón tiene que ser igual a la aportación de los trabajadores\nNo exceder del 13% del salario del trabajador\nCon un límite del 1.3 veces del valor de la UMA elevada al año\nFundamento: Artículo 27 fracción XI LISR"]
[null,"III. Las aportaciones adicionales que el patrón convenga otorgar a favor de sus trabajadores por concepto de cuotas del seguro de retiro, cesantía en edad avanzada y vejez."]
[null,"IV. Las cuotas que en términos de esta Ley le corresponde cubrir al patrón, las aportaciones al Instituto del Fondo Nacional de la Vivienda para los Trabajadores, y las participaciones en las utilidades de la empresa;",null,null,null,"https://dof.gob.mx/nota_detalle.php?codigo=5694775&fecha=07/07/2023#gsc.tab=0"]
[null,"Artículo 36 LSS. Corresponde al patrón pagar íntegramente la cuota señalada para los trabajadores, en los casos en que éstos perciban como cuota diaria el salario mínimo."]
[null,"Artículo 29 LINFONAVIT.- Son obligaciones de los patrones: \nII.- Determinar el monto de las aportaciones del cinco por ciento sobre el salario de los trabajadores a su servicio y efectuar el pago en las entidades receptoras que actúen por cuenta y orden del \nInstituto, para su abono en la subcuenta de vivienda de las cuentas individuales de los trabajadores previstas en los sistemas de ahorro para el retiro, en los términos de la presente \nLey y sus reglamentos, así como en lo conducente, conforme a lo previsto en la Ley del Seguro Social y en la Ley Federal del Trabajo. En lo que corresponde a la integración y cálculo de la \nbase y límite superior salarial para el pago de aportaciones, se aplicará lo contenido en la Ley del Seguro Social. \n\nEstas aportaciones son gastos de previsión de las empresas y forman parte del patrimonio de los trabajadores.\n......................................"]
[null,"V. La alimentación y la habitación cuando se entreguen en forma onerosa a los trabajadores; se entiende que son onerosas estas prestaciones cuando el trabajador pague por cada una de ellas, como mínimo, el veinte por ciento del salario mínimo general diario que rija en el Distrito Federal",null,null,null,{"$f":"IF(F5<>\"\",\"Se debe de cobrar por lo menos $\"&ROUND(F5*0.2,2),\"\")","v":"Se debe de cobrar por lo menos $23.46"},"https://dof.gob.mx/nota_detalle.php?codigo=5733018&fecha=11/07/2024#gsc.tab=0"]
[null,null,null,null,"¿Cuántos alimentos se le dan al trabajador?",3]
[null,null,null,null,{"$f":"IF(F16<>\"\",\"¿Cuanto paga el trabajador por el alimento?\",\"\")","v":"¿Cuanto paga el trabajador por el alimento?"},22.63]
[null,null,null,null,{"$f":"IF(AND(F16<>\"\",F17<>\"\"),IF(AND(F16=1,F17<ROUND(F5*0.2,2)),\"Se integra al salario el 8.33% del salario ordinario\",IF(AND(F16=2,F17<ROUND(F5*0.2,2)),\"Se integra al salario el 16.66% del salario ordinario\",IF(AND(F16=3,F17<ROUND(F5*0.2,2)),\"Se integra al salario el 25% del salario ordinario\",\"\"))),\"\")","v":"Se integra al salario el 25% del salario ordinario"},{"$f":"IF(AND(F16<>\"\",F17<>\"\"),IF(AND(F16=1,F17<ROUND(F5*0.2,2)),ROUND(F6*8.33%,2),IF(AND(F16=2,F17<ROUND(F5*0.2,2)),ROUND(F6*16.66%,2),IF(AND(F16=3,F17<ROUND(F5*0.2,2)),ROUND(F6*25%,2),\"\"))),\"\")","v":95}]
[null,"Artículo 32 LSS. Si además del salario en dinero el trabajador recibe del patrón, sin costo para aquél, habitación o alimentación, se estimará aumentado su salario en un veinticinco por ciento y si recibe ambas prestaciones se aumentará en un cincuenta por ciento.\n\nCuando la alimentación no cubra los tres alimentos, sino uno o dos de éstos, por cada uno de ellos se adicionará el salario en un ocho punto treinta y tres por ciento."]
[null,"Artículo 344 LFT.- Las disposiciones de este capítulo se aplican a los trabajadores en hoteles, casas de asistencia, restaurantes, fondas, cafés, bares y otros establecimientos análogos.\n\nArtículo 348 LFT.- La alimentación que se proporcione a los trabajadores deberá ser sana, abundante y nutritiva."]
[null,"VI. Las despensas en especie o en dinero, siempre y cuando su importe no rebase el cuarenta por ciento del salario mínimo general diario vigente en el Distrito Federal",null,null,null,{"$f":"IF(F5<>\"\",\"El importe máximo es de $\"&ROUND(F5*0.4,2),\"\")","v":"El importe máximo es de $46.92"}]
[null,null,null,null,"¿Importe diario que se le entrega al trabajador?",50]
[null,null,null,null,{"$f":"IF(F22<>\"\",\"Parte que integra\",\"\")","v":"Parte que integra"},{"$f":"IFERROR(IF(F22<>\"\",IF(AND(F22<>\"\",F22>ROUND(F5*0.4,2)),F22-ROUND(F5*0.4,2),0),\"\"),\"\")","v":3.0799999999999983}]
[null,null,null,null,{"$f":"IF(F22<>\"\",\"Parte que no integra\",\"\")","v":"Parte que no integra"},{"$f":"IFERROR(IF(F22<>\"\",IF(F22>=ROUND(F5*0.4,2),ROUND(F5*0.4,2),F22),\"\"),\"\")","v":46.92}]
[null,"VII. Los premios por asistencia y puntualidad, siempre que el importe de cada uno de estos conceptos no rebase el diez por ciento del salario base de cotización",null,null,null,"https://dof.gob.mx/nota_detalle.php?codigo=5744811&fecha=10/12/2024#gsc.tab=0"]
[null,"VIII. Las cantidades aportadas para fines sociales, considerándose como tales las entregadas para constituir fondos de algún plan de pensiones establecido por el patrón o derivado de contratación colectiva. Los planes de pensiones serán sólo los que reúnan los requisitos que establezca la Comisión Nacional del Sistema de Ahorro para el Retiro, y",null,null,null,"https://dof.gob.mx/nota_detalle.php?codigo=5691515&fecha=08/06/2023#gsc.tab=0"]
[null,"IX. El tiempo extraordinario dentro de los márgenes señalados en la Ley Federal del Trabajo."]
[null,"Artículo 66 LFT.- Podrá también prolongarse la jornada de trabajo por circunstancias extraordinarias, sin exceder nunca de tres horas diarias ni de tres veces en una semana."]
[null,"Para que los conceptos mencionados en este precepto se excluyan como integrantes del salario base de cotización, deberán estar debidamente registrados en la contabilidad del patrón.\n\nEn los conceptos previstos en las fracciones VI, VII y IX cuando el importe de estas prestaciones rebase el porcentaje establecido, solamente se integrarán los excedentes al salario base de cotización."]

{"sheet":"SBC","index":5,"n_rows":88,"n_cols":10,"rows_kept":88,"cut":false,"hidden":true,"merged":[[19,1,19,2],[4,1,4,8],[8,1,8,8],[10,1,10,2],[11,1,11,2],[12,1,12,2],[13,1,13,2],[14,1,14,2],[15,1,15,2],[16,1,16,2],[17,1,17,2],[18,1,18,2],[29,1,29,2],[47,2,47,3],[68,2,68,3],[21,1,21,3],[23,1,23,2],[24,1,24,2],[25,1,25,2],[27,1,27,2],[28,1,28,2]]}
[]
[]
[]
[]
[null,"Plantilla para Determinar el Salario Base de Cotización (SBC) - México"]
[]
[null,"Fecha de cálculo"]
[]
[null,"1) Entradas (editar celdas con relleno de color verde)"]
[]
[null,"Fecha de ingreso",null,null,null,"Otras prestaciones fijas prviamente conocidas"]
[null,"Fecha de cálculo",null,null,null,null,"Patrón","Trabajador"]
[null,"Días devengados del bimestre a cálcular (en su caso)",null,null,null,"% Fondo de ahorro",null,null,{"$f":"IFERROR(IF(G13=H13,\"No integra al SBC\",\"Integra $\"&ROUND(D14*G13,2)),\"\")","v":"No integra al SBC"}]
[null,"Salario diario pactado (SD)",null,null,null,"Habitación",null,{"$f":"IF(G14=\"Sí\",\"Cobro al trabajador\",\"\")","v":""},null,{"$f":"IFERROR(IF(H14<>\"\",IF(I14>=ROUND(D20*0.2,2),\"No integra\",\"Integra \"&TEXT(0.25,\"0%\")&\" del salario\"),\"\"),\"\")","v":""}]
[null,"Aguinaldo (días por año)",null,null,null,"Alimentación que se otorga",null,{"$f":"IFERROR(IF(G15<>\"\",\"Cobro al trabajador\",\"\"),\"\")","v":""},20]
[null,"Vacaciones (días por año)",null,{"$f":"IFERROR(VLOOKUP(VALUE(DATEDIF(D11,D12,\"y\")&\".\"&DATEDIF(D11,D12,\"YM\")&DATEDIF(D11,D12,\"MD\")),TABLAV,3),\"\")","v":12},null,"Despensa otrogada $",null,{"$f":"IFERROR(IF(G16<>\"\",IF(G16>ROUND(D20*0.4,2),\"Integra $\"&ROUND(G16-(D20*0.4),2),\"\"),\"\"),\"\")","v":""}]
[null,"Prima vacacional (%)"]
[null,"Zona del salario mínimo"]
[null,"Salario mínimo",null,{"$f":"IFERROR(VLOOKUP(D18,ZONAS,2,FALSE),\"\")","v":""}]
[null,"UMA diaria (ingrese la vigente)"]
[]
[null,"2) Cálculos"]
[]
[null,"Factor de integración (FI) por prestaciones mínimas:",null,{"$f":"IFERROR(ROUND(1+(D15/365)+(D16/365*D17),4),\"\")","v":1}]
[null,"Salario fijo integrado diario (SDI fijo) = SD × FI",null,{"$f":"IFERROR(ROUND(D14*D24,2),\"\")","v":0}]
[null,"Fondo de ahorro",null,{"$f":"IFERROR(I13,\"\")","v":"No integra al SBC"}]
[null,"Habitación",null,{"$f":"IFERROR(IF(J14<>\"\",ROUND(D14*0.25,2),0),0)","v":0}]
[null,"Alimentación",null,{"$f":"IFERROR(IF(I15<ROUND(D20*0.2,2),IF(G15=1,ROUND(D14*0.0833,2),IF(G15=2,ROUND(D14*0.1666,2),ROUND(D14*0.25,2))),0),\"\")","v":0}]
[null,"Despensa",null,{"$f":"IFERROR(IF(G16>ROUND(D20*0.4,2),ROUND(G16-D20*0.4,2),0),\"\")","v":0}]
[null,{"$f":"IFERROR(IF(ISODD(MONTH(D7)),\"(+) Variables del bimestre anterior (\"&TEXT(EOMONTH(D7,-2),\"mmmm\")&\"-\"&TEXT(EOMONTH(D7,-1),\"mmmm\")& \" \" & IF(MONTH(D7)=1,YEAR(D7)-1,YEAR(D7))&\")\",\"\"),\"\")","v":""}]
[null,{"$f":"IF($B$30<>\"\",\"Premio de puntualidad \" &TEXT(EOMONTH($D$7,-2),\"mmmm\"),\"\")","v":""}]
[null,{"$f":"IF($B$30<>\"\",\"Premio de puntualidad \" &TEXT(EOMONTH($D$7,-1),\"mmmm\"),\"\")","v":""},null,{"$f":"IFERROR(IF(ROUND((C31+C32)/$D$13,2)>=(SUMIF($D$25:$D$29,\">0\")*0.1),ROUND(((C31+C32)/$D$13)-(SUMIF($D$25:$D$29,\">0\")*0.1),2),\"\"),\"\")","v":""}]
[null,{"$f":"IF($B$30<>\"\",\"Premio de asistencia \" &TEXT(EOMONTH($D$7,-2),\"mmmm\"),\"\")","v":""}]
[null,{"$f":"IF($B$30<>\"\",\"Premio de asistencia \" &TEXT(EOMONTH($D$7,-1),\"mmmm\"),\"\")","v":""},null,{"$f":"IFERROR(IF(ROUND((C33+C34)/$D$13,2)>=(SUMIF($D$25:$D$29,\">0\")*0.1),ROUND(((C33+C34)/$D$13)-(SUMIF($D$25:$D$29,\">0\")*0.1),2),\"\"),\"\")","v":""}]
[null,{"$f":"IF($B$30<>\"\",\"Comisiones \" &TEXT(EOMONTH($D$7,-2),\"mmmm\"),\"\")","v":""}]
[null,{"$f":"IF($B$30<>\"\",\"Comisiones \" &TEXT(EOMONTH($D$7,-1),\"mmmm\"),\"\")","v":""},null,{"$f":"IFERROR(IF(B30<>\"\",ROUND((C35+C36)/$D$13,2),\"\"),\"\")","v":""}]
[null,{"$f":"IF($B$30<>\"\",\"Otros \" &TEXT(EOMONTH($D$7,-2),\"mmmm\"),\"\")","v":""}]
[null,{"$f":"IF($B$30<>\"\",\"Otros \" &TEXT(EOMONTH($D$7,-1),\"mmmm\"),\"\")","v":""},null,{"$f":"IFERROR(IF(B30<>\"\",ROUND((C37+C38)/$D$13,2),\"\"),\"\")","v":""}]
[null,"(=) Salario base de cotización",null,{"$f":"IFERROR(SUMIF($D$25:$D$38,\">0\"),\"\")","v":0}]
[]
[null,"Tope diario IMSS = 25 × UMA diaria",{"$f":"IFERROR(ROUND(IF(MONTH(D7)=1,UMAE,UMAF)*25,2),\"\")","v":2828.5}]
[]
[]
[]
[]
[null,"Salario base de cotización en jornada reducida"]
[]
[null,"Zona del salario mínimo","Zona del Salario Mínimo General"]
[null,"Salario mínimo",{"$f":"IFERROR(VLOOKUP(C48,ZONAS,2,FALSE),\"\")","v":315.04000000000002}]
[null,"Cuota por hora que se paga",50]
[null,"Días de la semana","Horas trabajadas","Total percibido por cada unidad de tiempo"]
[null,"Lunes",5,{"$f":"IFERROR(IF(C52<>\"\",ROUND(C52*$C$50,2),\"\"),\"\")","v":250}]
[null,"Martes",5,{"$f":"IFERROR(IF(C53<>\"\",ROUND(C53*$C$50,2),\"\"),\"\")","v":250}]
[null,"Miércoles",5,250]
[null,"Jueves",5,250]
[null,"Viernes",4,200]
[null,"Sábado",3,150]
[null,"Domingo",null,""]
[null,null,"Total pagado",{"$f":"SUMIF(D52:D58,\">0\")","v":1350}]
[null,null,"(/) ",7]
[null,null,"(=) SBC",{"$f":"IFERROR(ROUND(D59/D60,2),\"\")","v":192.86}]
[]
[null,null,"Salario base de cotización IMSS",{"$f":"IFERROR(IF(D61>=C49,D61,C49),\"\")","v":315.04000000000002}]
[]
[]
[]
[null,"Salario base de cotización en semana reducida"]
[]
[null,"Zona del salario mínimo","Zona del Salario Mínimo General"]
[null,"Salario mínimo",{"$f":"IFERROR(VLOOKUP(C69,ZONAS,2,FALSE),\"\")","v":315.04000000000002}]
[null,"Salario diario",600]
[null,"Días de la semana","Días que trabaja","Total percibido por cada unidad de tiempo"]
[null,"Lunes","Sí",{"$f":"IFERROR(IF(C73=\"Sí\",$C$71,\"\"),\"\")","v":600}]
[null,"Martes",null,{"$f":"IFERROR(IF(C74=\"Sí\",$C$71,\"\"),\"\")","v":""}]
[null,"Miércoles","Sí",600]
[null,"Jueves",null,""]
[null,"Viernes","Sí",600]
[null,"Sábado","Sí",600]
[null,"Domingo",null,""]
[null,null,"Total pagado",{"$f":"SUMIF(D73:D79,\">0\")","v":2400}]
[null,null,"(+) Séptimo día",{"$f":"IFERROR(ROUND(D80*(1/6),2),\"\")","v":400}]
[null,null,"(=) Base para SBC",{"$f":"SUMIF(D80:D81,\">0\")","v":2800}]
[null,null,"(/) ",7]
[null,null,"(=) Resultado",{"$f":"IFERROR(ROUND(D82/D83,2),\"\")","v":400}]
[null,null,"(x) Factor de integración",1.0492999999999999]
[null,null,"(=) SBC",{"$f":"IFERROR(ROUND(D84+D85,2),\"\")","v":401.05}]
[]
[null,null,"Salario base de cotización IMSS",{"$f":"IFERROR(IF(D86>=C70,D86,C70),\"\")","v":401.05}]

{"sheet":"DSDI","index":6,"n_rows":59,"n_cols":7,"rows_kept":59,"cut":false,"hidden":true,"merged":[[3,1,3,2],[13,1,14,2],[13,4,14,4],[57,1,58,2],[57,4,58,4]]}
[]
[]
[null,"Unidad de obra"]
[null,"Período de Trabajo",null,"Días Trabajados","Metros Cuadrados Instalados","Cuota por metro cuadrado","Percepción Total"]
[null,"2026-01-01","2026-01-07",{"$f":"IF(AND(B5<>\"\",C5<>\"\"),DATEDIF(B5,C5,\"D\")+1,\"\")","v":7},70,50,{"$f":"IFERROR(E5*F5,\"\")","v":3500}]
[null,{"$f":"C5+1","v":"2026-01-08"},{"$f":"C5+6","v":"2026-01-13"},{"$f":"IF(AND(B6<>\"\",C6<>\"\"),DATEDIF(B6,C6,\"D\")+1,\"\")","v":6},60,50,{"$f":"IFERROR(E6*F6,\"\")","v":3000}]
[null,{"$f":"C6+1","v":"2026-01-14"},{"$f":"B7+6","v":"2026-01-20"},7,80,50,4000]
[null,{"$f":"C7+1","v":"2026-01-21"},{"$f":"B8+6","v":"2026-01-27"},7,75,50,3750]
[null,{"$f":"C8+1","v":"2026-01-28"},"2026-01-30",3,65,50,3250]
[null,null,null,"",20,50,1000]
[null,"Totales",null,{"$f":"SUM(D5:D10)","v":30},null,null,{"$f":"SUM(G5:G10)","v":18500}]
[]
[]
[null,"Salario diario promedio",null,{"$f":"G11","v":18500},{"$f":"\"=      \"&IFERROR(ROUND(D14/D15,2),\"\")","v":"=      616.67"}]
[null,null,null,{"$f":"D11","v":30}]
[]
[]
[null,"Determinción cuando la retribución es variable"]
[null,"Fecha de cálculo","2026-01-01"]
[null,"Fecha inicial cálculo",{"$f":"IFERROR(IF(C19<>\"\",C19-30,\"\"),\"\")","v":"2025-12-02"}]
[null,"Fecha de aumento (en su caso)"]
[]
[null,"Periodo trabajado","Percepciones pagadas"]
[null,{"$f":"IF(C20<>\"\",C20,\"\")","v":"2025-12-02"}]
[null,{"$f":"IFERROR(B24+1,\"\")","v":"2025-12-03"}]
[null,{"$f":"IFERROR(B25+1,\"\")","v":"2025-12-04"},6000]
[null,"2025-12-05"]
[null,"2025-12-06"]
[null,"2025-12-07"]
[null,"2025-12-08"]
[null,"2025-12-09"]
[null,"2025-12-10"]
[null,"2025-12-11"]
[null,"2025-12-12"]
[null,"2025-12-13",3600]
[null,"2025-12-14"]
[null,"2025-12-15"]
[null,"2025-12-16"]
[null,"2025-12-17"]
[null,{"$f":"IFERROR(B39+1,\"\")","v":"2025-12-18"}]
[null,"2025-12-19"]
[null,"2025-12-20"]
[null,"2025-12-21"]
[null,"2025-12-22",2800]
[null,"2025-12-23"]
[null,"2025-12-24"]
[null,"2025-12-25"]
[null,"2025-12-26"]
[null,"2025-12-27"]
[null,"2025-12-28",1900]
[null,"2025-12-29"]
[null,"2025-12-30"]
[null,"2025-12-31"]
[null,"2026-01-01"]
[null,"Total",{"$f":"SUM(C24:C54)","v":14300}]
[]
[]
[null,"Salario diario promedio",null,{"$f":"IFERROR(IF(C21=\"\",C55,SUM(INDIRECT(ADDRESS(MATCH(C21,B24:B54,0)+23,3)):C54)),0)","v":14300},{"$f":"\"=      \"&IFERROR(DOLLAR(ROUND(D58/D59,2),2),\"\")","v":"=      $476.67"}]
[null,null,null,{"$f":"IFERROR(IF(C21=\"\",30,COUNTA(INDIRECT(ADDRESS(MATCH(C21,B24:B54,0)+23,2)):B54)),0)","v":30}]

{"sheet":"RIMSS","index":7,"n_rows":43,"n_cols":10,"rows_kept":43,"cut":false,"hidden":true,"merged":[[14,3,14,4],[16,1,16,4],[18,1,18,6],[37,1,37,2],[40,1,40,3],[12,1,13,1],[12,3,12,4],[12,8,13,8],[13,3,13,4],[6,3,6,4],[7,8,10,8],[9,3,9,4],[10,3,10,4],[11,3,11,4]]}
[]
[]
[null,"Capture información en las celdas de color verde"]
[]
[]
[null,"Seguro y concepto","Prestaciones","Cuota Patrón","Tasa Patrón","Cuota Trabajador","Total","Base salarial","Fundamento legal"]
[null,"Riesgos de Trabajo","En especie y dinero","Conforme con su siniestralidad laboral",null,0,"Prima correspondiente","Salario base de cotización (SBC)","Artículo 40, 70, 73 LSS y 24 RMACERF "]
[null,"Enfermedades y Maternidad","En especie","Cuota fija por cada colaborador hasta por tres Salarios Mínimos General Vigente (SMGV) en el DF",0.20399999999999999,0,0.20399999999999999,"UMA","Artículo 105, 106 Y 107 LSS"]
[null,"Enfermedades y Maternidad","En especie","Cuota adicional por la diferencia del SBC y de tres veces el valor de la UMA",1.0999999999999999E-2,4.0000000000000001E-3,1.4999999999999999E-2,"Diferencia entre el SBC y tres UMAS"]
[null,"Enfermedades y Maternidad","En dinero",7.0000000000000001E-3,null,2.5000000000000001E-3,9.4999999999999998E-3,"SBC"]
[null,"Enfermedades y Maternidad","Gastos médicos para pensionados y beneficiarios",1.0500000000000001E-2,null,3.7499999999999999E-3,1.43E-2,"SBC"]
[null,"Invalidez y Vida ","En especie y dinero ",1.7500000000000002E-2,null,6.3E-3,2.3800000000000002E-2,"SBC ","Artículo 112, 146 y 147 LSS"]
[null,"Retiro, Cesantía en Edad Avanzada y Vejez (CEAV) ","Retiro ",0.02,null,0,0.02,"SBC ","Artículo 152, 167 y 168 LSS"]
[null,null,"CEAV ","3.15% *",null,1.125E-2,4.2799999999999998E-2,"SBC "]
[null,"Guarderías y Prestaciones Sociales ","En especie ",0.01,null,0,0.01,"SBC ","Artículo 201, 211 y 212 LSS"]
[]
[null,"* Cambia a partir del ejercicio de 2023"]
[]
[null,"Artículo 38 LSS. El patrón al efectuar el pago de salarios a sus trabajadores, deberá retener las cuotas que a éstos les corresponde cubrir.\n\nCuando no lo haga en tiempo oportuno, sólo podrá descontar al trabajador cuatro cotizaciones semanales acumuladas, quedando las restantes a su cargo.\n\nEl patrón tendrá el carácter de retenedor de las cuotas que descuente a sus trabajadores y deberá determinar y enterar al Instituto las cuotas obrero patronales, en los términos establecidos por esta Ley y sus reglamentos."]
[]
[]
[null,"Fecha inicial de cálculo"]
[null,"Fecha final de cálculo"]
[null,"Salario diario del trabajador"]
[null,"Zona del salario mínimo"]
[null,"Salario mínimo",{"$f":"IFERROR(VLOOKUP(C25,GENERALES1!B21:C22,2,FALSE),\"\")","v":""}]
[null,"Mes de la UMA"]
[null,"Valor de la UMA",{"$f":"IFERROR(VLOOKUP(C27,GENERALES1!B25:C26,2,FALSE),\"\")","v":""}]
[null,"¿Días de aguinaldo que se otorgan?"]
[null,"% de la prima vacacional"]
[null,"Días del periodo a calcular"]
[]
[null,"Seguro y concepto","Prestaciones","Salario Base de Cotización","(-) 3 umas","(=) Excedente 3 umas","(x) Cuota obrera","(=) Cuota diaria","(x) días del periodo","(=) Cuota obrera "]
[null,"Enfermedades y Maternidad","En especie",{"$f":"IFERROR(ROUND($C$24*(1+($C$29/365)+(VLOOKUP(VALUE(DATEDIF($C$22,$C$23,\"Y\")&\".\"&DATEDIF($C$22,$C$23,\"YM\")&DATEDIF($C$22,$C$23,\"MD\")),TABLAV,3)/365*$C$30)),2),\"\")","v":0},{"$f":"IFERROR(C28*3,0)","v":0},{"$f":"IFERROR(IF(D34>=E34,D34-E34,0),0)","v":0},{"$f":"F9","v":4.0000000000000001E-3},{"$f":"IFERROR(ROUND(F34*G34,2),0)","v":0},{"$f":"IFERROR($C$31,\"\")","v":0},{"$f":"IFERROR(ROUND(H34*I34,2),0)","v":0}]
[null,"Enfermedades y Maternidad","En dinero",{"$f":"IFERROR(ROUND($C$24*(1+($C$29/365)+(VLOOKUP(VALUE(DATEDIF($C$22,$C$23,\"Y\")&\".\"&DATEDIF($C$22,$C$23,\"YM\")&DATEDIF($C$22,$C$23,\"MD\")),TABLAV,3)/365*$C$30)),2),\"\")","v":0},null,null,{"$f":"F10","v":2.5000000000000001E-3},{"$f":"IFERROR(ROUND(D35*G35,2),0)","v":0},{"$f":"IFERROR($C$31,\"\")","v":0},{"$f":"IFERROR(ROUND(H35*I35,2),0)","v":0}]
[null,"Enfermedades y Maternidad","Gastos médicos para pensionados y beneficiarios",{"$f":"IFERROR(ROUND($C$24*(1+($C$29/365)+(VLOOKUP(VALUE(DATEDIF($C$22,$C$23,\"Y\")&\".\"&DATEDIF($C$22,$C$23,\"YM\")&DATEDIF($C$22,$C$23,\"MD\")),TABLAV,3)/365*$C$30)),2),\"\")","v":0},null,null,{"$f":"F11","v":3.7499999999999999E-3},{"$f":"IFERROR(ROUND(D36*G36,2),0)","v":0},0,0]
[null,"Invalidez y Vida ","En especie y dinero ",{"$f":"IFERROR(ROUND($C$24*(1+($C$29/365)+(VLOOKUP(VALUE(DATEDIF($C$22,$C$23,\"Y\")&\".\"&DATEDIF($C$22,$C$23,\"YM\")&DATEDIF($C$22,$C$23,\"MD\")),TABLAV,3)/365*$C$30)),2),\"\")","v":0},null,null,{"$f":"F12","v":6.3E-3},0,0,0]
[null,"Cesantía en Edad Avanzada y Vejez (CEAV) ",null,{"$f":"IFERROR(ROUND($C$24*(1+($C$29/365)+(VLOOKUP(VALUE(DATEDIF($C$22,$C$23,\"Y\")&\".\"&DATEDIF($C$22,$C$23,\"YM\")&DATEDIF($C$22,$C$23,\"MD\")),TABLAV,3)/365*$C$30)),2),\"\")","v":0},null,null,{"$f":"F14","v":1.125E-2},0,0,0]
[null,null,null,null,null,null,null,null,"Total",{"$f":"SUM(J34:J38)","v":0}]
[]
[null,"Artículo 36 LSS. Corresponde al patrón pagar íntegramente la cuota señalada para los trabajadores, en los casos en que éstos perciban como cuota diaria el salario mínimo."]
[]
[null,"Importe a retener",{"$f":"IFERROR(IF(C24>C26,J39,0),\"\")","v":0}]

{"sheet":"RISR_IMSS","index":8,"n_rows":95,"n_cols":10,"rows_kept":95,"cut":false,"hidden":true,"merged":[[14,1,14,4],[51,1,51,2],[1,1,1,2],[61,1,61,6]]}
[]
[null,"Capture información en las celdas de color verde"]
[]
[null,"Año de cálculo"]
[null,"Mes de cálculo"]
[null,"Periodicidad de pago"]
[null,"Salario diario"]
[null,"Salario base de cotización"]
[null,"Zona del salario mínimo"]
[null,"Salario mínimo",{"$f":"IFERROR(VLOOKUP(C9,GENERALES1!$B$21:$C$22,2,FALSE),\"\")","v":""}]
[null,"Mes de la UMA"]
[null,"Valor de la UMA",{"$f":"IFERROR(VLOOKUP(C11,GENERALES1!$B$25:$C$26,2,FALSE),\"\")","v":""}]
[]
[]
[null,"V. Tarifa aplicable durante 2025 para el cálculo de los pagos provisionales mensuales a que se refieren los artículos 96 de la Ley del ISR y 175 de su Reglamento, así como la regla 3.12.2."]
[null,"Límite inferior","Límite superior","Cuota fija","Por ciento para aplicarse sobre el excedente del límite inferior"]
[null,"$","$","$","%"]
["①",0.01,{"$f":"IFERROR(IF($C$6<>\"\",IF($C$6<30,ROUND(TARIFA!C9/30.4*$C$6,2),TARIFA!C9),\"\"),\"\")","v":""},{"$f":"IFERROR(IF($C$6<>\"\",IF($C$6<30,ROUND(TARIFA!D9/30.4*$C$6,2),TARIFA!D9),\"\"),\"\")","v":""},1.92]
["①",{"$f":"IFERROR(C18+0.01,\"\")","v":""},{"$f":"IFERROR(IF($C$6<>\"\",IF($C$6<30,ROUND(TARIFA!C10/30.4*$C$6,2),TARIFA!C10),\"\"),\"\")","v":""},{"$f":"IFERROR(IF($C$6<>\"\",IF($C$6<30,ROUND(TARIFA!D10/30.4*$C$6,2),TARIFA!D10),\"\"),\"\")","v":""},6.4]
["①",{"$f":"IFERROR(C19+0.01,\"\")","v":""},{"$f":"IFERROR(IF($C$6<>\"\",IF($C$6<30,ROUND(TARIFA!C11/30.4*$C$6,2),TARIFA!C11),\"\"),\"\")","v":""},{"$f":"IFERROR(IF($C$6<>\"\",IF($C$6<30,ROUND(TARIFA!D11/30.4*$C$6,2),TARIFA!D11),\"\"),\"\")","v":""},10.88]
["①","",{"$f":"IFERROR(IF($C$6<>\"\",IF($C$6<30,ROUND(TARIFA!C12/30.4*$C$6,2),TARIFA!C12),\"\"),\"\")","v":""},{"$f":"IFERROR(IF($C$6<>\"\",IF($C$6<30,ROUND(TARIFA!D12/30.4*$C$6,2),TARIFA!D12),\"\"),\"\")","v":""},16]
["①","",{"$f":"IFERROR(IF($C$6<>\"\",IF($C$6<30,ROUND(TARIFA!C13/30.4*$C$6,2),TARIFA!C13),\"\"),\"\")","v":""},{"$f":"IFERROR(IF($C$6<>\"\",IF($C$6<30,ROUND(TARIFA!D13/30.4*$C$6,2),TARIFA!D13),\"\"),\"\")","v":""},17.920000000000002]
["①","",{"$f":"IFERROR(IF($C$6<>\"\",IF($C$6<30,ROUND(TARIFA!C14/30.4*$C$6,2),TARIFA!C14),\"\"),\"\")","v":""},{"$f":"IFERROR(IF($C$6<>\"\",IF($C$6<30,ROUND(TARIFA!D14/30.4*$C$6,2),TARIFA!D14),\"\"),\"\")","v":""},21.36]
["①","",{"$f":"IFERROR(IF($C$6<>\"\",IF($C$6<30,ROUND(TARIFA!C15/30.4*$C$6,2),TARIFA!C15),\"\"),\"\")","v":""},{"$f":"IFERROR(IF($C$6<>\"\",IF($C$6<30,ROUND(TARIFA!D15/30.4*$C$6,2),TARIFA!D15),\"\"),\"\")","v":""},23.52]
["①","",{"$f":"IFERROR(IF($C$6<>\"\",IF($C$6<30,ROUND(TARIFA!C16/30.4*$C$6,2),TARIFA!C16),\"\"),\"\")","v":""},{"$f":"IFERROR(IF($C$6<>\"\",IF($C$6<30,ROUND(TARIFA!D16/30.4*$C$6,2),TARIFA!D16),\"\"),\"\")","v":""},30]
["①","",{"$f":"IFERROR(IF($C$6<>\"\",IF($C$6<30,ROUND(TARIFA!C17/30.4*$C$6,2),TARIFA!C17),\"\"),\"\")","v":""},{"$f":"IFERROR(IF($C$6<>\"\",IF($C$6<30,ROUND(TARIFA!D17/30.4*$C$6,2),TARIFA!D17),\"\"),\"\")","v":""},32]
["①","",{"$f":"IFERROR(IF($C$6<>\"\",IF($C$6<30,ROUND(TARIFA!C18/30.4*$C$6,2),TARIFA!C18),\"\"),\"\")","v":""},{"$f":"IFERROR(IF($C$6<>\"\",IF($C$6<30,ROUND(TARIFA!D18/30.4*$C$6,2),TARIFA!D18),\"\"),\"\")","v":""},34]
["①","",{"$f":"TARIFA!C19","v":"En adelante"},{"$f":"IFERROR(IF($C$6<>\"\",IF($C$6<30,ROUND(TARIFA!D19/30.4*$C$6,2),TARIFA!D19),\"\"),\"\")","v":""},35]
[]
[null,"Salario del periodo",null,{"$f":"IFERROR(IF(C7<>\"\",ROUND(C7*C6,2),\"\"),\"\")","v":""}]
[null,"(+) Otros ingresos"]
[null,"(-) Deducciones"]
[null,"(=) Salario base para ISR",null,{"$f":"IFERROR(ROUND(D30+D31-D32,2),\"\")","v":""}]
[null,"Salario acumulado para subsidio al empleo (en su caso)"]
[]
[null,null,"Salario base para ISR",{"$f":"IFERROR(IF(D33>0,D33,\"\"),\"\")","v":""},null,null,{"$f":"IF($D$36<>\"\",\"Determinación del subsidio al empleo\",\"\")","v":""}]
[null,null,"(-) Límite inferior",{"$f":"IFERROR(VLOOKUP(D36,$B$18:$E$28,1),\"\")","v":""},"①",null,{"$f":"IF($D$36<>\"\",\"Valor de la UMA mensual\",\"\")","v":""},{"$f":"IF(G37<>\"\",IF(C5=\"Enero\",GENERALES1!C28,GENERALES1!C29),\"\")","v":""}]
[null,null,"(=) Excedente límite inferior",{"$f":"IFERROR(D36-D37,\"\")","v":""},null,null,{"$f":"IF($D$36<>\"\",\"% de subsidio\",\"\")","v":""},{"$f":"IF(D36<>\"\",IF(C5=\"Enero\",TARIFA!E27,TARIFA!D24),\"\")","v":""}]
[null,null,"(x) % excedente límite inferior",{"$f":"IFERROR(IF(D36<>\"\",VLOOKUP(D36,$B$18:$E$28,4),\"\"),\"\")","v":""},"①",null,{"$f":"IF($D$36<>\"\",\"Valor mensual del subsidio\",\"\")","v":""},{"$f":"IF(G39<>\"\",ROUND(H37*H38,2),\"\")","v":""}]
[null,null,"(=) Impuesto marginal",{"$f":"IFERROR(ROUND(D38*D39%,2),\"\")","v":""},null,null,{"$f":"IF(AND($D$36<>\"\",$C$6<30),\"(/) 30.4\",\"\")","v":""},{"$f":"IF(G40<>\"\",30.4,\"\")","v":""}]
[null,null,"(+) Cuota fija",{"$f":"IFERROR(VLOOKUP(D36,$B$18:$E$28,3),\"\")","v":""},"①",null,{"$f":"IF(AND($D$36<>\"\",$C$6<30),\"(x) Periodo de pago\",\"\")","v":""},{"$f":"IF(G41<>\"\",C6,\"\")","v":""}]
[null,null,"(=) ISR causado",{"$f":"IFERROR(D40+D41,\"\")","v":""},null,null,{"$f":"IF(AND($D$36<>\"\",$C$6<30),\"(=) Subsidio al empleo del periodo\",\"\")","v":""},{"$f":"IF(G42<>\"\",ROUND(H39/H40*H41,2),\"\")","v":""}]
[null,null,"(-) Subsidio al empleo causado",{"$f":"IFERROR(IF((D33+D34)<=GENERALES1!$C$30,IF($C$6<30,IF(D42>=H42,H42,D42),IF(D42>=H39,H39,D42)),0),\"\")","v":""}]
[null,null,"(=) ISR a retener",{"$f":"IFERROR(D42-D43,\"\")","v":""}]
[]
[]
[null,"Seguro y concepto","Prestaciones","Salario Base de Cotización","(-) 3 umas","(=) Excedente 3 umas","(x) Cuota obrera","(=) Cuota diaria","(x) días del periodo","(=) Cuota obrera "]
[null,"Enfermedades y Maternidad","En especie",{"$f":"IF(C8<>\"\",$C$8,\"\")","v":""},{"$f":"IFERROR($C$12*3,0)","v":0},{"$f":"IFERROR(IF(D48>=E48,D48-E48,0),0)","v":0},{"$f":"RIMSS!G34","v":4.0000000000000001E-3},{"$f":"IFERROR(ROUND(F48*G48,2),0)","v":0},{"$f":"$C$6","v":0},{"$f":"IFERROR(ROUND(H48*I48,2),0)","v":0}]
[null,"Enfermedades y Maternidad","En dinero",{"$f":"IF(C9<>\"\",$C$8,\"\")","v":""},null,null,{"$f":"RIMSS!G35","v":2.5000000000000001E-3},{"$f":"IFERROR(ROUND(D49*G49,2),0)","v":0},{"$f":"$C$6","v":0},{"$f":"IFERROR(ROUND(H49*I49,2),0)","v":0}]
[null,"Enfermedades y Maternidad","Gastos médicos para pensionados y beneficiarios","",null,null,{"$f":"RIMSS!G36","v":3.7499999999999999E-3},{"$f":"IFERROR(ROUND(D50*G50,2),0)","v":0},0,0]
[null,"Invalidez y Vida ","En especie y dinero ","",null,null,{"$f":"RIMSS!G37","v":6.3E-3},0,0,0]
[null,"Cesantía en Edad Avanzada y Vejez (CEAV) ",null,"",null,null,{"$f":"RIMSS!G38","v":1.125E-2},0,0,0]
[null,null,null,null,null,null,null,null,"Total",{"$f":"SUM(J48:J52)","v":0}]
[]
[null,"Ingreso base para ISR",{"$f":"IFERROR(IF(D36<>\"\",D36,\"\"),\"\")","v":""}]
[null,"(-) Retención de ISR",{"$f":"IF(C7>C10,D44,\"\")","v":""}]
[null,"(-) Retención de IMSS",{"$f":"IF(C7>C10,J53,\"\")","v":""}]
[null,"(=) Neto",{"$f":"IFERROR(C55-SUMIF(C56:C57,\">0\"),\"\")","v":""}]
[]
[]
[]
[null,"Las personas que hagan pagos por los conceptos a que se refiere el artículo 95 de esta Ley, efectuarán la retención aplicando al ingreso total por este concepto, una tasa que se calculará dividiendo el impuesto correspondiente al último sueldo mensual ordinario, entre dicho sueldo; el cociente obtenido se multiplicará por cien y el producto se expresará en por ciento. Cuando los pagos por estos conceptos sean inferiores al último sueldo mensual ordinario, la retención se calculará aplicándoles la tarifa establecida en este artículo.\nFundamento: Artículo 96 sexto párrafo LISR"]
[]
[null,"Retención de ISR por pagos por separación"]
[null,"Fecha de ingreso"]
[null,"Fecha de cálculo"]
[null,"Salario diario"]
[null,"Salario diario integrado"]
[null,"Zona del salario mínimo"]
[null,"Salario mínimo",{"$f":"IFERROR(VLOOKUP(C69,GENERALES1!$B$21:$C$22,2,FALSE),\"\")","v":""}]
[null,"Valor de la UMA",{"$f":"IFERROR(IF(C66<>\"\",IF(MONTH(C66)=1,GENERALES1!C25,GENERALES1!C26),\"\"),\"\")","v":""}]
[null,"Antigüedad para LFT",{"$f":"IFERROR(DATEDIF(C65,C66,\"Y\"),\"\")","v":0}]
[null,"Antigüedad para ISR",{"$f":"IFERROR(IF(AND(C65<>\"\",C66<>\"\"),IF(VALUE(DATEDIF(C65,C66,\"YM\")&DATEDIF(C65,C66,\"MD\"))>6,DATEDIF(C65,C66,\"Y\")+1,DATEDIF(C65,C66,\"Y\")),\"\"),\"\")","v":""}]
[null,"Último sueldo mensual ordinario",{"$f":"IFERROR(IF(C67<>\"\",C67,\"\"),\"\")","v":""}]
[]
[null,null,"Calcular los siguiente conceptos"]
[null,null,"Prima de antigüedad",null,{"$f":"IFERROR(IF(D77=\"Sí\",ROUND(12*C72*IF(C67>=(C70*2),ROUND(C70,2),C67),2),\"\"),\"\")","v":""}]
[null,null,"3 meses",null,{"$f":"IFERROR(IF(D78=\"Sí\",ROUND(90*C68,2),\"\"),\"\")","v":""}]
[null,null,"20 días por año",null,{"$f":"IFERROR(IF(D79=\"Sí\",ROUND(20*C72*C68,2),\"\"),\"\")","v":""}]
[null,null,null,"Total pagos",{"$f":"SUMIF(E77:E79,\">0\")","v":0}]
[null,null,null,"(-) Ingreso exento",{"$f":"IFERROR(IF(E80>=ROUND(C71*90*C73,2),ROUND(C71*90*C73,2),E80),\"\")","v":""}]
[null,null,null,"(=) Ingreso acumulable",{"$f":"IFERROR(E80-E81,\"\")","v":""}]
[null,null,null,"(-) Último sueldo mensual ordinario",{"$f":"IFERROR(IF(OR(D77<>\"\",D78<>\"\",D79<>\"\"),ROUND(C67*30,2),\"\"),\"\")","v":""}]
[null,null,null,"(=) Ingreso no acumulable",{"$f":"IFERROR(IF(E82>=E83,E82-E83,0),\"\")","v":""}]
[]
[null,"Determinación de la retención de ISR"]
[null,{"$f":"IF(E82>=E83,\"Último sueldo mensual ordinario\",\"Ingreso acumulable\")","v":"Último sueldo mensual ordinario"},{"$f":"IF(E82>=E83,E83,E82)","v":""}]
[null,{"$f":"IF(E82>E83,\"Determinación de la tasa de ISR\",\"ISR a retener\")","v":"ISR a retener"},{"$f":"IFERROR(IF(E82<E83,ROUND(((E82-VLOOKUP(E82,TARIFA!$B$9:$E$19,1))*VLOOKUP(E82,TARIFA!$B$9:$E$19,4)%)+VLOOKUP(E82,TARIFA!$B$9:$E$19,3),2),\"\"),0)","v":""}]
[null,{"$f":"IF(E82>E83,\"ISR último sueldo mensual ordinario\",\"\")","v":""},{"$f":"IFERROR(IF(E82>E83,ROUND(((E83-VLOOKUP(E83,TARIFA!$B$9:$E$19,1))*VLOOKUP(E83,TARIFA!$B$9:$E$19,4)%)+VLOOKUP(E83,TARIFA!$B$9:$E$19,3),2),\"\"),\"\")","v":""}]
[null,{"$f":"IF(E82>E83,\"(/) Último sueldo mensual ordinario\",\"\")","v":""},{"$f":"IF(B90<>\"\",E83,\"\")","v":""}]
[null,{"$f":"IF(E82>E83,\"(=) Tasa de ISR\",\"\")","v":""},{"$f":"IFERROR(IF(B91<>\"\",ROUND(C89/C90,4),\"\"),\"\")","v":""}]
[]
[null,{"$f":"IF(E82>E83,\"Ingreso acumulable\",\"\")","v":""},{"$f":"IF(B93<>\"\",E82,\"\")","v":""}]
[null,{"$f":"IF(E82>E83,\"(x) Tasa de ISR\",\"\")","v":""},{"$f":"IF(B94<>\"\",C91,\"\")","v":""}]
[null,{"$f":"IF(E82>E83,\"(=) ISR a retener\",\"\")","v":""},{"$f":"IFERROR(IF(B95<>\"\",ROUND(C93*C94,2),\"\"),\"\")","v":""}]

{"sheet":"EMISIONM","index":9,"n_rows":8,"n_cols":20,"rows_kept":8,"cut":false,"hidden":true,"merged":[[5,9,5,10],[5,11,5,12],[5,13,5,14],[5,16,5,17]]}
[]
[null,"Determinación de las cuotas obrero patronales mensuales"]
[null,null,"Año de cálculo "]
[null,null,"Mes "]
[null,null,"Valor de la UMA "]
[null,null,"Prima de riesgo ",null,null,null,null,null,null,"Enfermedad y maternidad excedente 3 veces el valor de la UMA",null,"Enfermedad y maternidad prestaciones en dinero",null,"Enfermedad y maternidad gastos médicos pensionados",null,null,"Invalidez y vida"]
[null,null,null,null,null,null,null,null,0.20399999999999999,1.0999999999999999E-2,4.0000000000000001E-3,7.0000000000000001E-3,2.5000000000000001E-3,1.0500000000000001E-2,3.7499999999999999E-3,null,1.7500000000000002E-2,6.2500000000000003E-3,0.01]
[null,"NSS","Nombre","Días del mes","Faltas","Incapacidades","Salario diario (opcional)","Salario base de cotización","Cuota Fija","Excedente Patronal","Excedente Obrero","Prestaciones en Dinero Patronal","Prestaciones en Dinero Obrero","Gastos Médicos y Pensionados Patronal","Gastos Médicos y Pensionados Obrero","Riesgos de Trabajo","Invalidez y Vida Patronal","Invalidez y Vida Obrero","Guarderías y Prestaciones Sociales","Total"]

{"sheet":"EMISIONB","index":10,"n_rows":9,"n_cols":19,"rows_kept":9,"cut":false,"hidden":true,"merged":[[6,9,6,10]]}
[]
[null,"Determinación de las cuotas obrero patronales bimestral"]
[null,null,"Año de cálculo "]
[null,null,"Bimestre "]
[null,null,"Salarío mínimo general de la zona "]
[null,null,"Valor de la UMA "]
[null,null,null,null,null,null,null,null,null,"Cesantía en Edad Avanzada y Vejez"]
[null,null,null,null,null,null,null,null,0.02,null,1.125E-2,null,0.05]
[null,"NSS","Nombre","Días del bimestre","Faltas","Incapacidades","Salario diario","Salario base de cotización","Retiro","Cesantía en Edad Avanzada y Vejez Patronal","Cesantía en Edad Avanzada y Vejez Obrero","Subtotal RCV","Aportación Patronal INFONAVIT","Tipo de Descuento","Valor de Descuento","Número de Crédito","Amortización","Subtotal Infonavit","Total"]

{"sheet":"RESUMEN IMSS","index":11,"n_rows":23,"n_cols":5,"rows_kept":23,"cut":false,"hidden":true,"merged":[]}
[]
[]
[]
[]
[null,"Resumen Emisión IMSS",null,null,"Resumen Emisión RCV"]
[]
[null,"Periodo Mensual",null,null,"Bimestre"]
[null,"Días",null,null,"Número de acreditados"]
[null,"Total Cotizantes IMSS"]
[null,"Prima de Riesgos de Trabajo",null,null,"Total Aportación Pat. Infonavit"]
[]
[null,"Cuota Fija",null,null,"Aportación Pat. S/C Infonavit"]
[null,"Excedente Patronal",null,null,"Aportación Pat. C/C Infonavit"]
[null,"Excedente Obrero",null,null,"Amortización"]
[null,"Prestaciones en Dinero Patronal",null,null,"Aport. Pat. C/C Det. Infonavit mas Amort."]
[null,"Prestaciones en Dinero Obrero",null,null,"Suma Infonavit"]
[null,"Gastos Médicos y Pensionados Patronal"]
[null,"Gastos Médicos y Pensionados Obrero",null,null,"Retiro"]
[null,"Riesgos de Trabajo",null,null,"Cesantía y vejez Patronal"]
[null,"Invalidez y Vida Patronal",null,null,"Cesantía y vejez Obrero"]
[null,"Invalidez y Vida Obrero",null,null,"Suma RCV"]
[null,"Guarderías y Prestaciones Sociales"]
[null,"Total",null,null,"Total"]

{"sheet":"CEDULA","index":12,"n_rows":29,"n_cols":13,"rows_kept":29,"cut":false,"hidden":true,"merged":[]}
[]
[]
[null,"Determinación de diferencias (capture en las celdas de color verde los datos de las emisiones anticipadas)"]
[]
[]
[null,"Periodo al que corresponde",null,null,null,null,"Datos del cálculo manual",null,null,null,"Difetencias"]
[null,"Concepto","Patronal","Obrera","Suma",null,"Patronal","Obrera","Suma",null,"Patronal","Obrera","Suma"]
[null,"IMPORTE TOTAL"]
[null,"Cuota Fija"]
[null,"Excedente"]
[null,"Prestaciones en Dinero"]
[null,"Gastos Med. Pens. Art. 25"]
[null,"Riesgos de Trabajo"]
[null,"Invalidez y Vida Patronal"]
[null,"Guarderías y Prestaciones Sociales"]
[]
[]
[null,"Periodo al que corresponde"]
[null,null,"Emisión IMSS","Resumen cálculo","Diferencias"]
[null,"Aportación Pat. S/C Infonavit"]
[null,"Aportación Pat. C/C Infonavit"]
[null,"Amortización"]
[null,"Aport. Pat. C/C Det. Infonavit mas Amort."]
[null,"Suma Infonavit"]
[]
[null,"Retiro"]
[null,"Cesantía y vejez Patronal"]
[null,"Cesantía y vejez Obrero"]
[null,"Suma RCV"]

{"sheet":"TARIFA","index":13,"n_rows":207,"n_cols":10,"rows_kept":207,"cut":false,"hidden":true,"merged":[[5,1,5,4]]}
[]
[]
[]
[null,null,null,null,null,null,"Convertir a:",{"$f":"IF(RISR_IMSS!C6<>\"\",RISR_IMSS!C6,30)","v":30}]
[]
[null,"V. Tarifa aplicable durante 2026 para el cálculo de los pagos provisionales mensuales a que se refieren los artículos 96 de la Ley del ISR y 175 de su Reglamento, así como la regla 3.12.2."]
[null,"Límite inferior","Límite superior","Cuota fija","Por ciento para aplicarse sobre el excedente del límite inferior",null,"Límite inferior","Límite superior","Cuota fija","Por ciento para aplicarse sobre el excedente del límite inferior"]
[null,"$","$","$","%",null,"$","$","$","%"]
[null,0.01,844.59,0,1.92,null,0.01,{"$f":"IFERROR(IF($H$4<30,ROUND(C9/30.4*$H$4,2),C9),C9)","v":844.59},{"$f":"IFERROR(IF($H$4<30,ROUND(D9/30.4*$H$4,2),D9),D9)","v":0},1.92]
[null,844.6,7168.51,16.22,6.4,null,{"$f":"IFERROR(H9+0.01,H9)","v":844.6},{"$f":"IFERROR(IF($H$4<30,ROUND(C10/30.4*$H$4,2),C10),C10)","v":7168.51},{"$f":"IFERROR(IF($H$4<30,ROUND(D10/30.4*$H$4,2),D10),D10)","v":16.22},6.4]
[null,7168.52,12598.02,420.95,10.88,null,{"$f":"IFERROR(H10+0.01,H10)","v":7168.52},12598.02,420.95,10.88]
[null,12598.03,14644.64,1011.68,16,null,12598.03,14644.64,1011.68,16]
[null,14644.65,17533.64,1339.14,17.920000000000002,null,14644.65,17533.64,1339.14,17.920000000000002]
[null,17533.650000000001,35362.83,1856.84,21.36,null,17533.649999999998,35362.83,1856.84,21.36]
[null,35362.839999999997,55736.68,5665.16,23.52,null,35362.840000000004,55736.68,5665.16,23.52]
[null,55736.69,106410.5,10457.09,30,null,55736.69,106410.5,10457.09,30]
[null,106410.51,141880.66,25659.23,32,null,106410.51,141880.66,25659.23,32]
[null,141880.67000000001,425641.99,37009.69,34,null,141880.67000000001,425641.99,37009.69,34]
[null,425642,"En adelante",133488.54,35,null,425642,"En adelante",133488.54,35]
[]
[]
[]
[null,"Valor de la UMA mensual",null,3300.53]
[null,"% del subsidio al empleo",null,{"$f":"GENERALES1!C31","v":0.1502}]
[null,"Importe para subsidio",null,{"$f":"GENERALES1!C30","v":11492.66}]
[]
[null,"% subsidio al empleo Enero",null,null,{"$f":"GENERALES1!C32","v":0.15590000000000001}]
[]
[]
[]
[]
[]
[]
[]
[]
[]
[]
[]
[]
[]
[]
[]
[]
[]
[]
[]
[]
[]
[]
[]
[]
[]
[]
[]
[]
[]
[]
[]
[]
[]
[]
[]
[]
[]
[]
[]
[]
[]
[]
[]
[]
[]
[]
[]
[]
[]
[]
[]
[]
[]
[]
[]
[]
[]
[]
[]
[]
[]
[]
[]
[]
[]
[]
[]
[]
[]
[]
[]
[]
[]
[]
[]
[]
[]
[]
[]
[]
[]
[]
[]
[]
[]
[]
[]
[]
[]
[]
[]
[]
[]
[]
[]
[]
[]
[]
[]
[]
[]
[]
[]
[]
[]
[]
[]
[]
[]
[]
[]
[]
[]
[]
[]
[]
[]
[]
[]
[]
[]
[]
[]
[]
[]
[]
[]
[]
[]
[]
[]
[]
[]
[]
[]
[]
[]
[]
[]
[]
[]
[]
[]
[]
[]
[]
[]
[]
[]
[null,1]
[null,2]
[null,3]
[null,4]
[null,5]
[null,6]
[null,7]
[null,8]
[null,9]
[null,10]
[null,11]
[null,12]
[null,13]
[null,14]
[null,15]
[null,16]
[null,17]
[null,18]
[null,19]
[null,20]
[null,21]
[null,22]
[null,23]
[null,24]
[null,25]
[null,26]
[null,27]
[null,28]
[null,29]
[null,30]
[null,31]

{"sheet":"GENERALES1","index":14,"n_rows":32,"n_cols":4,"rows_kept":32,"cut":false,"hidden":true,"merged":[[4,1,4,3],[5,1,5,2],[19,1,19,2],[23,1,23,2]]}
[]
[]
[]
[]
[null,"Tabla de vacaciones para trabajadores de no buques (art. 76 LFT)"]
[null,"Años"]
[null,"Mínimo","Máximo","Días"]
[null,0,1,12]
[null,{"$f":"C8+0.01","v":1.01},2,{"$f":"D8+2","v":14}]
[null,{"$f":"C9+0.01","v":2.0099999999999998},3,{"$f":"D9+2","v":16}]
[null,3.01,4,18]
[null,4.01,5,20]
[null,5.01,{"$f":"C12+5","v":10},22]
[null,10.01,{"$f":"C13+5","v":15},24]
[null,15.01,20,26]
[null,20.010000000000002,25,28]
[null,25.01,30,30]
[null,30.01,35,32]
[]
[null,"Salario mínimo"]
[null,"Zona Libre de la Frontera Norte",440.87]
[null,"Zona del Salario Mínimo General",315.04000000000002]
[]
[null,"Valor de la UMA"]
[null,"Enero",113.14]
[null,"Febrero en adelante",117.31]
[]
[null,"Valor de la UMA mensual enero",3439.46]
[null,"Valor de la UMA mensual posterior",3566.22]
[null,"Total base ISR para subsidio",11492.66]
[null,"% del subsidio al empleo",0.1502]
[null,"% Subsidio al empleo Enero",0.15590000000000001]

{"sheet":"GENERAL","index":15,"n_rows":240,"n_cols":10,"rows_kept":240,"cut":false,"hidden":true,"merged":[[38,2,38,9],[60,1,60,3],[70,5,70,6]]}
[]
[]
[]
[null,"Enero",{"$f":"IFERROR(DAY(EOMONTH(DATE(EMISIONM!$D$3,ROW($A1),1),0)),\"\")","v":31}]
[null,"Febrero",{"$f":"IFERROR(DAY(EOMONTH(DATE(EMISIONM!$D$3,ROW($A2),1),0)),\"\")","v":28}]
[null,"Marzo",{"$f":"IFERROR(DAY(EOMONTH(DATE(EMISIONM!$D$3,ROW($A3),1),0)),\"\")","v":31}]
[null,"Abril",{"$f":"IFERROR(DAY(EOMONTH(DATE(EMISIONM!$D$3,ROW($A4),1),0)),\"\")","v":30}]
[null,"Mayo",{"$f":"IFERROR(DAY(EOMONTH(DATE(EMISIONM!$D$3,ROW($A5),1),0)),\"\")","v":31}]
[null,"Junio",{"$f":"IFERROR(DAY(EOMONTH(DATE(EMISIONM!$D$3,ROW($A6),1),0)),\"\")","v":30}]
[null,"Julio",{"$f":"IFERROR(DAY(EOMONTH(DATE(EMISIONM!$D$3,ROW($A7),1),0)),\"\")","v":31}]
[null,"Agosto",{"$f":"IFERROR(DAY(EOMONTH(DATE(EMISIONM!$D$3,ROW($A8),1),0)),\"\")","v":31}]
[null,"Septiembre",{"$f":"IFERROR(DAY(EOMONTH(DATE(EMISIONM!$D$3,ROW($A9),1),0)),\"\")","v":30}]
[null,"Octubre",{"$f":"IFERROR(DAY(EOMONTH(DATE(EMISIONM!$D$3,ROW($A10),1),0)),\"\")","v":31}]
[null,"Noviembre",{"$f":"IFERROR(DAY(EOMONTH(DATE(EMISIONM!$D$3,ROW($A11),1),0)),\"\")","v":30}]
[null,"Diciembre",{"$f":"IFERROR(DAY(EOMONTH(DATE(EMISIONM!$D$3,ROW($A12),1),0)),\"\")","v":31}]
[]
[]
[null,"Enero - Febrero",{"$f":"IFERROR(C4+C5,\"\")","v":59}]
[null,"Marzo - Abril",{"$f":"IFERROR(C6+C7,\"\")","v":61}]
[null,"Mayo - Junio",{"$f":"IFERROR(C8+C9,\"\")","v":61}]
[null,"Julio - Agosto",{"$f":"IFERROR(C10+C11,\"\")","v":62}]
[null,"Septiembre - Octubre",{"$f":"IFERROR(C12+C13,\"\")","v":61}]
[null,"Noviembre - Diciembre",{"$f":"IFERROR(C14+C15,\"\")","v":61}]
[]
[]
[]
[]
[null,"Cesantía en edad avanzada y vejez"]
[null,"Valor mímino","Valor máximo","% a aplicar"]
[null,{"$f":"IFERROR(EMISIONB!$D$5,\"\")","v":0},{"$f":"IFERROR(EMISIONB!$D$5,\"\")","v":0},{"$f":"IFERROR(VLOOKUP(B30,$B$40:$J$48,VLOOKUP(EMISIONB!$D$3,GENERAL!$B$51:$C$58,2,FALSE),FALSE),\"\")","v":""}]
[null,{"$f":"IFERROR(ROUND(EMISIONB!$D$5*1.01,2),\"\")","v":0},{"$f":"IFERROR(ROUND(EMISIONB!$D$6*1.5,2),\"\")","v":0},{"$f":"IFERROR(VLOOKUP(B31,$B$40:$J$48,VLOOKUP(EMISIONB!$D$3,GENERAL!$B$51:$C$58,2,FALSE),FALSE),\"\")","v":""}]
[null,{"$f":"IFERROR(ROUND(EMISIONB!$D$6*1.51,2),\"\")","v":0},{"$f":"IFERROR(ROUND(EMISIONB!$D$6*2,2),\"\")","v":0},{"$f":"IFERROR(VLOOKUP(B32,$B$40:$J$48,VLOOKUP(EMISIONB!$D$3,GENERAL!$B$51:$C$58,2,FALSE),FALSE),\"\")","v":""}]
[null,{"$f":"IFERROR(ROUND(EMISIONB!$D$6*2.01,2),\"\")","v":0},{"$f":"IFERROR(ROUND(EMISIONB!$D$6*2.5,2),\"\")","v":0},{"$f":"IFERROR(VLOOKUP(B33,$B$40:$J$48,VLOOKUP(EMISIONB!$D$3,GENERAL!$B$51:$C$58,2,FALSE),FALSE),\"\")","v":""}]
[null,{"$f":"IFERROR(ROUND(EMISIONB!$D$6*2.51,2),\"\")","v":0},{"$f":"IFERROR(ROUND(EMISIONB!$D$6*3,2),\"\")","v":0},{"$f":"IFERROR(VLOOKUP(B34,$B$40:$J$48,VLOOKUP(EMISIONB!$D$3,GENERAL!$B$51:$C$58,2,FALSE),FALSE),\"\")","v":""}]
[null,{"$f":"IFERROR(ROUND(EMISIONB!$D$6*3.01,2),\"\")","v":0},{"$f":"IFERROR(ROUND(EMISIONB!$D$6*3.5,2),\"\")","v":0},{"$f":"IFERROR(VLOOKUP(B35,$B$40:$J$48,VLOOKUP(EMISIONB!$D$3,GENERAL!$B$51:$C$58,2,FALSE),FALSE),\"\")","v":""}]
[null,{"$f":"IFERROR(ROUND(EMISIONB!$D$6*3.51,2),\"\")","v":0},{"$f":"IFERROR(ROUND(EMISIONB!$D$6*4,2),\"\")","v":0},{"$f":"IFERROR(VLOOKUP(B36,$B$40:$J$48,VLOOKUP(EMISIONB!$D$3,GENERAL!$B$51:$C$58,2,FALSE),FALSE),\"\")","v":""}]
[null,{"$f":"IFERROR(ROUND(EMISIONB!$D$6*4.01,2),\"\")","v":0},99999999,{"$f":"IFERROR(VLOOKUP(B37,$B$40:$J$48,VLOOKUP(EMISIONB!$D$3,GENERAL!$B$51:$C$58,2,FALSE),FALSE),\"\")","v":""}]
[]
[null,null,"% a aplicar"]
[null,"Valor mímino",2023,2024,2025,2026,2027,2028,2029,2030]
[null,{"$f":"IFERROR(EMISIONB!$D$5,\"\")","v":0},3.15E-2,3.15E-2,3.15E-2,3.15E-2,3.15E-2,3.15E-2,3.15E-2,3.15E-2]
[null,{"$f":"IFERROR(ROUND(EMISIONB!$D$5*1.01,2),\"\")","v":0},3.2809999999999999E-2,3.4130000000000001E-2,3.5439999999999999E-2,3.6760000000000001E-2,3.807E-2,3.9390000000000001E-2,4.07E-2,4.2020000000000002E-2]
[null,{"$f":"IFERROR(ROUND(EMISIONB!$D$6*1.51,2),\"\")","v":0},3.5749999999999997E-2,0.04,4.4260000000000001E-2,4.8509999999999998E-2,5.2760000000000001E-2,5.7009999999999998E-2,6.1260000000000002E-2,6.5519999999999995E-2]
[null,{"$f":"IFERROR(ROUND(EMISIONB!$D$6*2.01,2),\"\")","v":0},3.7510000000000002E-2,4.3529999999999999E-2,4.9540000000000001E-2,5.5559999999999998E-2,6.157E-2,6.7589999999999997E-2,7.3599999999999999E-2,7.9619999999999996E-2]
[null,{"$f":"IFERROR(ROUND(EMISIONB!$D$6*2.51,2),\"\")","v":0},3.8690000000000002E-2,4.5879999999999997E-2,5.3069999999999999E-2,6.0260000000000001E-2,6.7449999999999996E-2,7.4639999999999998E-2,8.183E-2,8.9020000000000002E-2]
[null,{"$f":"IFERROR(ROUND(EMISIONB!$D$6*3.01,2),\"\")","v":0},3.9530000000000003E-2,4.7559999999999998E-2,5.5590000000000001E-2,6.361E-2,7.1639999999999995E-2,7.9670000000000005E-2,8.77E-2,9.5729999999999996E-2]
[null,{"$f":"IFERROR(ROUND(EMISIONB!$D$6*3.51,2),\"\")","v":0},4.0160000000000001E-2,4.8820000000000002E-2,5.747E-2,6.6129999999999994E-2,7.4789999999999995E-2,8.3449999999999996E-2,9.2109999999999997E-2,0.10077]
[null,{"$f":"IFERROR(ROUND(EMISIONB!$D$6*4.01,2),\"\")","v":0},4.2410000000000003E-2,5.3310000000000003E-2,6.4219999999999999E-2,7.5130000000000002E-2,8.6029999999999995E-2,9.6939999999999998E-2,0.10784000000000001,0.11874999999999999]
[]
[]
[null,2023,2]
[null,2024,3]
[null,2025,4]
[null,2026,5]
[null,2027,6]
[null,2028,7]
[null,2029,8]
[null,2030,9]
[]
[]
[null,"Tabla de vacaciones"]
[null,"Mímino","Máximo","Días",null,"Área geográfica","Salario mímino"]
[null,0,1,12,null,"Zona Libre de la Frontera Norte",440.87]
[null,{"$f":"C63+0.01","v":1.01},{"$f":"C63+1","v":2},{"$f":"D63+2","v":14},null,"Zona del Salario Mínimo General",315.04000000000002]
[null,{"$f":"C64+0.01","v":2.0099999999999998},{"$f":"C64+1","v":3},{"$f":"D64+2","v":16}]
[null,3.01,4,18]
[null,4.01,5,20,null,"Valor de la UMA","Importe"]
[null,5.01,{"$f":"C67+5","v":10},22,null,"Enero",113.14]
[null,10.01,{"$f":"C68+5","v":15},24,null,"Febrero en adelante",117.31]
[null,15.01,20,26]
[null,20.010000000000002,25,28,null,"Pediodicidad"]
[null,25.01,30,30,null,"Diario",1]
[null,30.01,35,32,null,"Semanal",7]
[null,35.01,40,34,null,"Catorcenal",10]
[null,40.01,45,36,null,"Quincenal",14]
[null,45.01,50,38,null,"Mensual",30]
[null,50.01,55,40]
[null,55.01,60,42]
[null,60.01,65,44]
[null,65.010000000000005,70,46]
[]
[]
[null,null,null,null,null,"www.acfmsc.com"]
[]
[]
[]
[null,1]
[null,2]
[null,3]
[null,4]
[null,5]
[null,6]
[null,7]
[null,8]
[null,9]
[null,10]
[null,11]
[null,12]
[null,13]
[null,14]
[null,15]
[null,16]
[null,17]
[null,18]
[null,19]
[null,20]
[null,21]
[null,22]
[null,23]
[null,24]
[null,25]
[null,26]
[null,27]
[null,28]
[null,29]
[null,30]
[null,31]
[]
[]
[]
[]
[]
[]
[]
[]
[]
[]
[]
[]
[]
[]
[]
[null,"c_TipoContrato","Descripción"]
[null,1,"Contrato de trabajo por tiempo indeterminado"]
[null,2,"Contrato de trabajo para obra determinada"]
[null,3,"Contrato de trabajo por tiempo determinado"]
[null,4,"Contrato de trabajo por temporada"]
[null,5,"Contrato de trabajo sujeto a prueba"]
[null,6,"Contrato de trabajo con capacitación inicial"]
[null,7,"Modalidad de contratación por pago de hora laborada"]
[null,8,"Modalidad de trabajo por comisión laboral"]
[null,9,"Modalidades de contratación donde no existe relación de trabajo"]
[null,10,"Jubilación, pensión, retiro."]
[null,99,"Otro contrato"]
[]
[]
[null,"c_TipoJornada","Descripción"]
[null,1,"Diurna"]
[null,2,"Nocturna"]
[null,3,"Mixta"]
[null,4,"Por hora"]
[null,5,"Reducida"]
[null,6,"Continuada"]
[null,7,"Partida"]
[null,8,"Por turnos"]
[null,99,"Otra Jornada"]
[]
[null,"c_TipoRegimen","Descripción"]
[null,2,"Sueldos (Incluye ingresos señalados en la fracción I del artículo 94 de LISR)"]
[null,3,"Jubilados"]
[null,4,"Pensionados"]
[null,5,"Asimilados Miembros Sociedades Cooperativas Produccion"]
[null,6,"Asimilados Integrantes Sociedades Asociaciones Civiles"]
[null,7,"Asimilados Miembros consejos"]
[null,8,"Asimilados comisionistas"]
[null,9,"Asimilados Honorarios"]
[null,10,"Asimilados acciones"]
[null,11,"Asimilados otros"]
[null,12,"Jubilados o Pensionados"]
[null,13,"Indemnización o Separación"]
[null,99,"Otro Regimen"]
[]
[null,"c_RiesgoPuesto","Descripción"]
[null,1,"Clase I"]
[null,2,"Clase II"]
[null,3,"Clase III"]
[null,4,"Clase IV"]
[null,5,"Clase V"]
[null,99,"No aplica"]
[]
[null,"c_PeriodicidadPago","Descripción"]
[null,1,"Diario"]
[null,2,"Semanal"]
[null,3,"Catorcenal"]
[null,4,"Quincenal"]
[null,5,"Mensual"]
[null,6,"Bimestral"]
[null,7,"Unidad obra"]
[null,8,"Comisión"]
[null,9,"Precio alzado"]
[null,10,"Decenal"]
[null,99,"Otra Periodicidad"]
[]
[null,"c_Estado","c_Pais","Nombre del estado"]
[null,"AGU","MEX","Aguascalientes"]
[null,"BCN","MEX","Baja California"]
[null,"BCS","MEX","Baja California Sur"]
[null,"CAM","MEX","Campeche"]
[null,"CHP","MEX","Chiapas"]
[null,"CHH","MEX","Chihuahua"]
[null,"COA","MEX","Coahuila"]
[null,"COL","MEX","Colima"]
[null,"CMX","MEX","Ciudad de México"]
[null,"DUR","MEX","Durango"]
[null,"GUA","MEX","Guanajuato"]
[null,"GRO","MEX","Guerrero"]
[null,"HID","MEX","Hidalgo"]
[null,"JAL","MEX","Jalisco"]
[null,"MEX","MEX","Estado de México"]
[null,"MIC","MEX","Michoacán"]
[null,"MOR","MEX","Morelos"]
[null,"NAY","MEX","Nayarit"]
[null,"NLE","MEX","Nuevo León"]
[null,"OAX","MEX","Oaxaca"]
[null,"PUE","MEX","Puebla"]
[null,"QUE","MEX","Querétaro"]
[null,"ROO","MEX","Quintana Roo"]
[null,"SLP","MEX","San Luis Potosí"]
[null,"SIN","MEX","Sinaloa"]
[null,"SON","MEX","Sonora"]
[null,"TAB","MEX","Tabasco"]
[null,"TAM","MEX","Tamaulipas"]
[null,"TLA","MEX","Tlaxcala"]
[null,"VER","MEX","Veracruz"]
[null,"YUC","MEX","Yucatán"]
[null,"ZAC","MEX","Zacatecas"]
[]
[]
[null,"Enero"]
[null,"Febrero"]
[null,"Marzo"]
[null,"Abril"]
[null,"Mayo"]
[null,"Junio"]
[null,"Julio"]
[null,"Agosto"]
[null,"Septiembre"]
[null,"Octubre"]
[null,"Noviembre"]
[null,"Diciembre"]

{"sheet":"CATALOGO","index":16,"n_rows":229,"n_cols":11,"rows_kept":229,"cut":false,"hidden":true,"merged":[]}
[]
[]
[]
[null,"c_RiesgoPuesto","Descripción","Fecha inicio de vigencia","Fecha fin de vigencia",null,null,"c_TipoPercepcion","Descripción","Fecha inicio de vigencia","Fecha fin de vigencia"]
[null,1,"Clase I","2017-01-01",null,null,null,1,"Sueldos, Salarios  Rayas y Jornales","2016-11-01"]
[null,2,"Clase II","2017-01-01",null,null,null,2,"Gratificación Anual (Aguinaldo)","2016-11-01"]
[null,3,"Clase III","2017-01-01",null,null,null,3,"Participación de los Trabajadores en las Utilidades PTU","2016-11-01"]
[null,4,"Clase IV","2017-01-01",null,null,null,4,"Reembolso de Gastos Médicos Dentales y Hospitalarios","2016-11-01"]
[null,5,"Clase V","2017-01-01",null,null,null,5,"Fondo de Ahorro","2016-11-01"]
[null,99,"No aplica","2017-08-13",null,null,null,6,"Caja de ahorro","2016-11-01"]
[null,null,null,null,null,null,null,9,"Contribuciones a Cargo del Trabajador Pagadas por el Patrón","2016-11-01"]
[null,null,null,null,null,null,null,10,"Premios por puntualidad","2016-11-01"]
[null,"c_TipoRegimen","Descripción","Fecha inicio de vigencia","Fecha fin de vigencia",null,null,11,"Prima de Seguro de vida","2016-11-01"]
[null,2,"Sueldos","2017-01-01",null,null,null,12,"Seguro de Gastos Médicos Mayores","2016-11-01"]
[null,3,"Jubilados","2017-01-01",null,null,null,13,"Cuotas Sindicales Pagadas por el Patrón","2016-11-01"]
[null,4,"Pensionados","2017-01-01",null,null,null,14,"Subsidios por incapacidad","2016-11-01"]
[null,5,"Asimilados Miembros Sociedades Cooperativas Produccion","2017-01-01",null,null,null,15,"Becas para trabajadores y/o hijos","2016-11-01"]
[null,6,"Asimilados Integrantes Sociedades Asociaciones Civiles","2017-01-01",null,null,null,19,"Horas extra","2016-11-01"]
[null,7,"Asimilados Miembros consejos","2017-01-01",null,null,null,20,"Prima dominical","2016-11-01"]
[null,8,"Asimilados comisionistas","2017-01-01",null,null,null,21,"Prima vacacional","2016-11-01"]
[null,9,"Asimilados Honorarios","2017-01-01",null,null,null,22,"Prima por antigüedad","2016-11-01"]
[null,10,"Asimilados acciones","2017-01-01",null,null,null,23,"Pagos por separación","2016-11-01"]
[null,11,"Asimilados otros","2017-01-01",null,null,null,24,"Seguro de retiro","2016-11-01"]
[null,12,"Jubilados o Pensionados","2017-03-27",null,null,null,25,"Indemnizaciones","2016-11-01"]
[null,13,"Indemnización o Separación","2018-10-15",null,null,null,26,"Reembolso por funeral","2016-11-01"]
[null,99,"Otro Regimen","2017-01-01",null,null,null,27,"Cuotas de seguridad social pagadas por el patrón","2016-11-01"]
[null,null,null,null,null,null,null,28,"Comisiones","2016-11-01"]
[null,null,null,null,null,null,null,29,"Vales de despensa","2016-11-01"]
[null,"c_TipoContrato","Descripción",null,null,null,null,30,"Vales de restaurante","2016-11-01"]
[null,1,"Contrato de trabajo por tiempo indeterminado",null,null,null,null,31,"Vales de gasolina","2016-11-01"]
[null,2,"Contrato de trabajo para obra determinada",null,null,null,null,32,"Vales de ropa","2016-11-01"]
[null,3,"Contrato de trabajo por tiempo determinado",null,null,null,null,33,"Ayuda para renta","2016-11-01"]
[null,4,"Contrato de trabajo por temporada",null,null,null,null,34,"Ayuda para artículos escolares","2016-11-01"]
[null,5,"Contrato de trabajo sujeto a prueba",null,null,null,null,35,"Ayuda para anteojos","2016-11-01"]
[null,6,"Contrato de trabajo con capacitación inicial",null,null,null,null,36,"Ayuda para transporte","2016-11-01"]
[null,7,"Modalidad de contratación por pago de hora laborada",null,null,null,null,37,"Ayuda para gastos de funeral","2016-11-01"]
[null,8,"Modalidad de trabajo por comisión laboral",null,null,null,null,38,"Otros ingresos por salarios","2016-11-01"]
[null,9,"Modalidades de contratación donde no existe relación de trabajo",null,null,null,null,39,"Jubilaciones, pensiones o haberes de retiro","2016-11-01"]
[null,10,"Jubilación, pensión, retiro.",null,null,null,null,44,"Jubilaciones, pensiones o haberes de retiro en parcialidades","2016-11-01"]
[null,99,"Otro contrato",null,null,null,null,45,"Ingresos en acciones o títulos valor que representan bienes","2016-11-01"]
[null,null,null,null,null,null,null," 046","Ingresos asimilados a salarios","2016-11-01"]
[null,null,null,null,null,null,null," 047","Alimentación","2016-11-01"]
[null,"c_PeriodicidadPago","Descripción","Fecha inicio de vigencia","Fecha fin de vigencia",null,null,48,"Habitación","2016-11-01"]
[null,1,"Diario","2016-11-01",null,null,null,49,"Premios por asistencia","2016-11-01"]
[null,2,"Semanal","2016-11-01",null,null,null,50,"Viáticos","2017-01-06"]
[null,3,"Catorcenal","2016-11-01",null,null,null,51,"Pagos por gratificaciones, primas, compensaciones, recompensas u otros a extrabajadores derivados de jubilación en parcialidades","2018-10-15"]
[null,4,"Quincenal","2016-11-01",null,null,null,52,"Pagos que se realicen a extrabajadores que obtengan una jubilación en parcialidades derivados de la ejecución de resoluciones judicial o de un laudo","2018-10-15"]
[null,5,"Mensual","2016-11-01",null,null,null,53,"Pagos que se realicen a extrabajadores que obtengan una jubilación en una sola exhibición derivados de la ejecución de resoluciones judicial o de un laudo","2018-10-15"]
[null,6,"Bimestral","2016-11-01"]
[null,7,"Unidad obra","2016-11-01"]
[null,8,"Comisión","2016-11-01",null,null,null," c_TipoOtroPago","Descripción","Fecha inicio de vigencia","Fecha fin de vigencia"]
[null,9,"Precio alzado","2016-11-01",null,null,null,1,"Reintegro de ISR pagado en exceso (siempre que no haya sido enterado al SAT).","2017-01-01"]
[null,10,"Decenal","2017-01-19",null,null,null,2,"Subsidio para el empleo (efectivamente entregado al trabajador).","2017-01-01"]
[null,99,"Otra Periodicidad","2016-11-01",null,null,null,3,"Viáticos (entregados al trabajador).","2017-01-01"]
[null,null,null,null,null,null,null,4,"Aplicación de saldo a favor por compensación anual.","2017-01-01"]
[null,null,null,null,null,null,null,5,"Reintegro de ISR retenido en exceso de ejercicio anterior (siempre que no haya sido enterado al SAT).","2017-12-05"]
[null,"c_TipoIncapacidad","Descripción",null,null,null,null,999,"Pagos distintos a los listados y que no deben considerarse como ingreso por sueldos, salarios o ingresos asimilados.","2017-01-01"]
[null,1,"Riesgo de trabajo."]
[null,2,"Enfermedad en general."]
[null,3,"Maternidad.",null,null,null,null,"c_TipoDeduccion","Descripción","Fecha inicio de vigencia","Fecha fin de vigencia"]
[null,null,null,null,null,null,null,1,"Seguridad social","2016-11-01"]
[null,null,null,null,null,null,null,2,"ISR","2016-11-01"]
[null,"c_TipoJornada","Descripción",null,null,null,null,3,"Aportaciones a retiro, cesantía en edad avanzada y vejez.","2016-11-01"]
[null,1,"Diurna",null,null,null,null,4,"Otros","2016-11-01"]
[null,2,"Nocturna",null,null,null,null,5,"Aportaciones a Fondo de vivienda","2016-11-01"]
[null,3,"Mixta",null,null,null,null,6,"Descuento por incapacidad","2016-11-01"]
[null,4,"Por hora",null,null,null,null,7,"Pensión alimenticia","2016-11-01"]
[null,5,"Reducida",null,null,null,null,8,"Renta","2016-11-01"]
[null,6,"Continuada",null,null,null,null,9,"Préstamos provenientes del Fondo Nacional de la Vivienda para los Trabajadores","2016-11-01"]
[null,7,"Partida",null,null,null,null,10,"Pago por crédito de vivienda","2016-11-01"]
[null,8,"Por turnos",null,null,null,null,11,"Pago de abonos INFONACOT","2016-11-01"]
[null,99,"Otra Jornada",null,null,null,null,12,"Anticipo de salarios","2016-11-01"]
[null,null,null,null,null,null,null,13,"Pagos hechos con exceso al trabajador","2016-11-01"]
[null,null,null,null,null,null,null,14,"Errores","2016-11-01"]
[null,"c_Estado","c_Pais","Nombre del estado",null,null,null,15,"Pérdidas","2016-11-01"]
[null,"AGU","MEX","Aguascalientes",null,null,null,16,"Averías","2016-11-01"]
[null,"BCN","MEX","Baja California",null,null,null,17,"Adquisición de artículos producidos por la empresa o establecimiento","2016-11-01"]
[null,"BCS","MEX","Baja California Sur",null,null,null,18,"Cuotas para la constitución y fomento de sociedades cooperativas y de cajas de ahorro","2016-11-01"]
[null,"CAM","MEX","Campeche",null,null,null,19,"Cuotas sindicales","2016-11-01"]
[null,"CHP","MEX","Chiapas",null,null,null,20,"Ausencia (Ausentismo)","2016-11-01"]
[null,"CHH","MEX","Chihuahua",null,null,null,21,"Cuotas obrero patronales","2016-11-01"]
[null,"COA","MEX","Coahuila",null,null,null,22,"Impuestos Locales","2016-11-01"]
[null,"COL","MEX","Colima",null,null,null,23,"Aportaciones voluntarias","2016-11-01"]
[null,"DIF","MEX","Ciudad de México",null,null,null,24,"Ajuste en Gratificación Anual (Aguinaldo) Exento","2017-01-06"]
[null,"DUR","MEX","Durango",null,null,null,25,"Ajuste en Gratificación Anual (Aguinaldo) Gravado","2017-01-06"]
[null,"GUA","MEX","Guanajuato",null,null,null,26,"Ajuste en Participación de los Trabajadores en las Utilidades PTU Exento","2017-01-06"]
[null,"GRO","MEX","Guerrero",null,null,null,27,"Ajuste en Participación de los Trabajadores en las Utilidades PTU Gravado","2017-01-06"]
[null,"HID","MEX","Hidalgo",null,null,null,28,"Ajuste en Reembolso de Gastos Médicos Dentales y Hospitalarios Exento","2017-01-06"]
[null,"JAL","MEX","Jalisco",null,null,null,29,"Ajuste en Fondo de ahorro Exento","2017-01-06"]
[null,"MEX","MEX","Estado de México",null,null,null,30,"Ajuste en Caja de ahorro Exento","2017-01-06"]
[null,"MIC","MEX","Michoacán",null,null,null,31,"Ajuste en Contribuciones a Cargo del Trabajador Pagadas por el Patrón Exento","2017-01-06"]
[null,"MOR","MEX","Morelos",null,null,null,32,"Ajuste en Premios por puntualidad Gravado","2017-01-06"]
[null,"NAY","MEX","Nayarit",null,null,null,33,"Ajuste en Prima de Seguro de vida Exento","2017-01-06"]
[null,"NLE","MEX","Nuevo León",null,null,null,34,"Ajuste en Seguro de Gastos Médicos Mayores Exento","2017-01-06"]
[null,"OAX","MEX","Oaxaca",null,null,null,35,"Ajuste en Cuotas Sindicales Pagadas por el Patrón Exento","2017-01-06"]
[null,"PUE","MEX","Puebla",null,null,null,36,"Ajuste en Subsidios por incapacidad Exento","2017-01-06"]
[null,"QUE","MEX","Querétaro",null,null,null,37,"Ajuste en Becas para trabajadores y/o hijos Exento","2017-01-06"]
[null,"ROO","MEX","Quintana Roo",null,null,null,38,"Ajuste en Horas extra Exento","2017-01-06"]
[null,"SLP","MEX","San Luis Potosí",null,null,null,39,"Ajuste en Horas extra Gravado","2017-01-06"]
[null,"SIN","MEX","Sinaloa",null,null,null,40,"Ajuste en Prima dominical Exento","2017-01-06"]
[null,"SON","MEX","Sonora",null,null,null,41,"Ajuste en Prima dominical Gravado","2017-01-06"]
[null,"TAB","MEX","Tabasco",null,null,null,42,"Ajuste en Prima vacacional Exento","2017-01-06"]
[null,"TAM","MEX","Tamaulipas",null,null,null,43,"Ajuste en Prima vacacional Gravado","2017-01-06"]
[null,"TLA","MEX","Tlaxcala",null,null,null,44,"Ajuste en Prima por antigüedad Exento","2017-01-06"]
[null,"VER","MEX","Veracruz",null,null,null,45,"Ajuste en Prima por antigüedad Gravado","2017-01-06"]
[null,"YUC","MEX","Yucatán",null,null,null,46,"Ajuste en Pagos por separación Exento","2017-01-06"]
[null,"ZAC","MEX","Zacatecas",null,null,null,47,"Ajuste en Pagos por separación Gravado","2017-01-06"]
[null,"AL","USA","Alabama",null,null,null,48,"Ajuste en Seguro de retiro Exento","2017-01-06"]
[null,"AK","USA","Alaska",null,null,null,49,"Ajuste en Indemnizaciones Exento","2017-01-06"]
[null,"AZ","USA","Arizona",null,null,null,50,"Ajuste en Indemnizaciones Gravado","2017-01-06"]
[null,"AR","USA","Arkansas",null,null,null,51,"Ajuste en Reembolso por funeral Exento","2017-01-06"]
[null,"CA","USA","California",null,null,null,52,"Ajuste en Cuotas de seguridad social pagadas por el patrón Exento","2017-01-06"]
[null,"NC","USA","Carolina del Norte",null,null,null,53,"Ajuste en Comisiones Gravado","2017-01-06"]
[null,"SC","USA","Carolina del Sur",null,null,null,54,"Ajuste en Vales de despensa Exento","2017-01-06"]
[null,"CO","USA","Colorado",null,null,null,55,"Ajuste en Vales de restaurante Exento","2017-01-06"]
[null,"CT","USA","Connecticut",null,null,null,56,"Ajuste en Vales de gasolina Exento","2017-01-06"]
[null,"ND","USA","Dakota del Norte",null,null,null,57,"Ajuste en Vales de ropa Exento","2017-01-06"]
[null,"SD","USA","Dakota del Sur",null,null,null,58,"Ajuste en Ayuda para renta Exento","2017-01-06"]
[null,"DE","USA","Delaware",null,null,null,59,"Ajuste en Ayuda para artículos escolares Exento","2017-01-06"]
[null,"FL","USA","Florida",null,null,null,60,"Ajuste en Ayuda para anteojos Exento","2017-01-06"]
[null,"GA","USA","Georgia",null,null,null,61,"Ajuste en Ayuda para transporte Exento","2017-01-06"]
[null,"HI","USA","Hawái",null,null,null,62,"Ajuste en Ayuda para gastos de funeral Exento","2017-01-06"]
[null,"ID","USA","Idaho",null,null,null,63,"Ajuste en Otros ingresos por salarios Exento","2017-01-06"]
[null,"IL","USA","Illinois",null,null,null,64,"Ajuste en Otros ingresos por salarios Gravado","2017-01-06"]
[null,"IN","USA","Indiana",null,null,null,65,"Ajuste en Jubilaciones, pensiones o haberes de retiro en una sola exhibición Exento ","2018-10-15"]
[null,"IA","USA","Iowa",null,null,null,66,"Ajuste en Jubilaciones, pensiones o haberes de retiro en una sola exhibición Gravado","2018-10-15"]
[null,"KS","USA","Kansas",null,null,null,67,"Ajuste en Pagos por separación Acumulable","2017-01-06"]
[null,"KY","USA","Kentucky",null,null,null,68,"Ajuste en Pagos por separación No acumulable","2017-01-06"]
[null,"LA","USA","Luisiana",null,null,null,69,"Ajuste en Jubilaciones, pensiones o haberes de retiro en parcialidades Exento","2018-10-15"]
[null,"ME","USA","Maine",null,null,null,70,"Ajuste en Jubilaciones, pensiones o haberes de retiro en parcialidades Gravado","2018-10-15"]
[null,"MD","USA","Maryland",null,null,null,71,"Ajuste en Subsidio para el empleo (efectivamente entregado al trabajador)","2017-01-06"]
[null,"MA","USA","Massachusetts",null,null,null,72,"Ajuste en Ingresos en acciones o títulos valor que representan bienes Exento","2017-01-06","2018-10-14"]
[null,"MI","USA","Míchigan",null,null,null,73,"Ajuste en Ingresos en acciones o títulos valor que representan bienes Gravado","2017-01-06"]
[null,"MN","USA","Minnesota",null,null,null,74,"Ajuste en Alimentación Exento","2017-01-06"]
[null,"MS","USA","Misisipi",null,null,null,75,"Ajuste en Alimentación Gravado","2017-01-06"]
[null,"MO","USA","Misuri",null,null,null,76,"Ajuste en Habitación Exento","2017-01-06"]
[null,"MT","USA","Montana",null,null,null,77,"Ajuste en Habitación Gravado","2017-01-06"]
[null,"NE","USA","Nebraska",null,null,null,78,"Ajuste en Premios por asistencia","2017-01-06"]
[null,"NV","USA","Nevada",null,null,null,79,"Ajuste en Pagos distintos a los listados y que no deben considerarse como ingreso por sueldos, salarios o ingresos asimilados.","2017-01-06"]
[null,"NJ","USA","Nueva Jersey",null,null,null,80,"Ajuste en Viáticos gravados","2017-01-06"]
[null,"NY","USA","Nueva York",null,null,null,81,"Ajuste en Viáticos (entregados al trabajador)","2017-01-06"]
[null,"NH","USA","Nuevo Hampshire",null,null,null,"082","Ajuste en Fondo de ahorro Gravado","2017-01-06"]
[null,"NM","USA","Nuevo México",null,null,null,"083","Ajuste en Caja de ahorro Gravado","2017-01-06"]
[null,"OH","USA","Ohio",null,null,null,"084","Ajuste en Prima de Seguro de vida Gravado","2017-01-06"]
[null,"OK","USA","Oklahoma",null,null,null,"085","Ajuste en Seguro de Gastos Médicos Mayores Gravado","2017-01-06"]
[null,"OR","USA","Oregón",null,null,null,"086","Ajuste en Subsidios por incapacidad Gravado","2017-01-06"]
[null,"PA","USA","Pensilvania",null,null,null,"087","Ajuste en Becas para trabajadores y/o hijos Gravado","2017-01-06"]
[null,"RI","USA","Rhode Island",null,null,null,"088","Ajuste en Seguro de retiro Gravado","2017-01-06"]
[null,"TN","USA","Tennessee",null,null,null,"089","Ajuste en Vales de despensa Gravado","2017-01-06"]
[null,"TX","USA","Texas",null,null,null,"090","Ajuste en Vales de restaurante Gravado","2017-01-06"]
[null,"UT","USA","Utah",null,null,null,"091","Ajuste en Vales de gasolina Gravado","2017-01-06"]
[null,"VT","USA","Vermont",null,null,null,"092","Ajuste en Vales de ropa Gravado","2017-01-06"]
[null,"VA","USA","Virginia",null,null,null,"093","Ajuste en Ayuda para renta Gravado","2017-01-06"]
[null,"WV","USA","Virginia Occidental",null,null,null,"094","Ajuste en Ayuda para artículos escolares Gravado","2017-01-06"]
[null,"WA","USA","Washington",null,null,null,"095","Ajuste en Ayuda para anteojos Gravado","2017-01-06"]
[null,"WI","USA","Wisconsin",null,null,null,"096","Ajuste en Ayuda para transporte Gravado","2017-01-06"]
[null,"WY","USA","Wyoming",null,null,null,"097","Ajuste en Ayuda para gastos de funeral Gravado","2017-01-06"]
[null,"ON","CAN","Ontario ",null,null,null,"098","Ajuste a ingresos asimilados a salarios gravados","2017-01-06"]
[null,"QC","CAN"," Quebec ",null,null,null,"099","Ajuste a ingresos por sueldos y salarios gravados","2017-01-06"]
[null,"NS","CAN"," Nueva Escocia",null,null,null,100,"Ajuste en Viáticos exentos","2017-01-06"]
[null,"NB","CAN","Nuevo Brunswick ",null,null,null,101,"ISR Retenido de ejercicio anterior","2017-12-05"]
[null,"MB","CAN"," Manitoba",null,null,null,102,"Ajuste a pagos por gratificaciones, primas, compensaciones, recompensas u otros a extrabajadores derivados de jubilación en parcialidades, gravados","2018-10-15"]
[null,"BC","CAN"," Columbia Británica",null,null,null,103,"Ajuste a pagos que se realicen a extrabajadores que obtengan una jubilación en parcialidades derivados de la ejecución de una resolución judicial o de un laudo gravados","2018-10-15"]
[null,"PE","CAN"," Isla del Príncipe Eduardo",null,null,null,104,"Ajuste a pagos que se realicen a extrabajadores que obtengan una jubilación en parcialidades derivados de la ejecución de una resolución judicial o de un laudo exentos","2018-10-15"]
[null,"SK","CAN"," Saskatchewan",null,null,null,105,"Ajuste a pagos que se realicen a extrabajadores que obtengan una jubilación en una sola exhibición derivados de la ejecución de una resolución judicial o de un laudo gravados","2018-10-15"]
[null,"AB","CAN"," Alberta",null,null,null,106,"Ajuste a pagos que se realicen a extrabajadores que obtengan una jubilación en una sola exhibición derivados de la ejecución de una resolución judicial o de un laudo exentos","2018-10-15"]
[null,"NL","CAN"," Terranova y Labrador"]
[null,"NT","CAN"," Territorios del Noroeste"]
[null,"YT","CAN"," Yukón"]
[null,"UN","CAN"," Nunavut"]
[]
[]
[]
[]
[]
[]
[]
[]
[]
[]
[]
[]
[]
[]
[null,"c_TipoPercepcion","Descripción","Gravado","Exento","Régimen","Régimen consula","c_TipoRegimen","Descripción"]
[null,1,"Sueldos, Salarios  Rayas y Jornales","a","r",2,{"$f":"F186-B186","v":1},2,"Sueldos (Incluye ingresos señalados en la fracción I del artículo 94 de LISR)",2]
[null,2,"Gratificación Anual (Aguinaldo)","a","a",2,{"$f":"F187-B187","v":0},3,"Jubilados",3412]
[null,3,"Participación de los Trabajadores en las Utilidades PTU","a","a",2,-1,4,"Pensionados",3412]
[null,4,"Reembolso de Gastos Médicos Dentales y Hospitalarios","a","a",2,-2,5,"Asimilados Miembros Sociedades Cooperativas Produccion",567891011]
[null,5,"Fondo de Ahorro","a","a",2,-3,6,"Asimilados Integrantes Sociedades Asociaciones Civiles",567891011]
[null,6,"Caja de ahorro","a","a",2,-4,7,"Asimilados Miembros consejos",567891011]
[null,9,"Contribuciones a Cargo del Trabajador Pagadas por el Patrón","a","r",2,-7,8,"Asimilados comisionistas",567891011]
[null,10,"Premios por puntualidad","a","r",2,-8,9,"Asimilados Honorarios",567891011]
[null,11,"Prima de Seguro de vida","a","a",2,-9,10,"Asimilados acciones",567891011]
[null,12,"Seguro de Gastos Médicos Mayores","a","a",2,-10,11,"Asimilados otros",567891011]
[null,13,"Cuotas Sindicales Pagadas por el Patrón","a","a",2,-11,12,"Jubilados o Pensionados",3412]
[null,14,"Subsidios por incapacidad","a","a",2,-12,13,"Indemnización o Separación",13]
[null,15,"Becas para trabajadores y/o hijos","a","a",2,-13,99,"Otro Regimen",99]
[null,19,"Horas extra","a","a",2,-17]
[null,20,"Prima dominical","a","a",2,-18]
[null,21,"Prima vacacional","a","a",2,-19]
[null,24,"Seguro de retiro","a","a",2,-22]
[null,26,"Reembolso por funeral","a","a",2,-24]
[null,27,"Cuotas de seguridad social pagadas por el patrón","r","a",2,-25]
[null,28,"Comisiones","a","r",2,-26]
[null,29,"Vales de despensa","a","a",2,-27]
[null,30,"Vales de restaurante","a","a",2,-28]
[null,31,"Vales de gasolina","a","a",2,-29]
[null,32,"Vales de ropa","a","a",2,-30]
[null,33,"Ayuda para renta","a","a",2,-31]
[null,34,"Ayuda para artículos escolares","a","a",2,-32]
[null,35,"Ayuda para anteojos","a","a",2,-33]
[null,36,"Ayuda para transporte","a","a",2,-34]
[null,37,"Ayuda para gastos de funeral","a","a",2,-35]
[null,38,"Otros ingresos por salarios","a","a",2,-36]
[null,47,"Alimentación diferentes a los establecidos en el Art 94 último párrafo LISR","a","a",2,-45]
[null,48,"Habitación","a","a",2,-46]
[null,49,"Premios por asistencia","a","r",2,-47]
[null,50,"Viáticos","a","a",2,-48]
[null,39,"Jubilaciones, pensiones o haberes de retiro","a","a",3412,3373]
[null,44,"Jubilaciones, pensiones o haberes de retiro en parcialidades","a","a",3412,3368]
[null,51,"Pagos por gratificaciones, primas, compensaciones, recompensas u otros a extrabajadores derivados de jubilación en parcialidades","a","r",3412,3361]
[null,52,"Pagos que se realicen a extrabajadores que obtengan una jubilación en parcialidades derivados de la ejecución de resoluciones judicial o de un laudo","a","a",3412,3360]
[null,53,"Pagos que se realicen a extrabajadores que obtengan una jubilación en una sola exhibición derivados de la ejecución de resoluciones judicial o de un laudo","a","a",3412,3359]
[null,22,"Prima por antigüedad","a","a",13,-9]
[null,23,"Pagos por separación","a","a",13,-10]
[null,25,"Indemnizaciones","a","a",13,-12]
[null,45,"Ingresos en acciones o títulos valor que representan bienes","a","r",567891011,567890966]
[null,46,"Ingresos asimilados a salarios","a","r",567891011,567890965]

{"sheet":"c_Estado","index":17,"n_rows":100,"n_cols":6,"rows_kept":100,"cut":false,"hidden":true,"merged":[[0,0,0,2]]}
["Catálogo de estados. "]
["Versión CFDI","Versión catálogo","Revisión catálogo","Fecha publicación de catálogo","Fecha  inicio de vigencia del catálogo","Fecha fin de vigencia del catálogo"]
[4,1,0,0,"2022-01-01"]
[]
["c_Estado","c_Pais","Nombre del estado","Fecha inicio de vigencia","Fecha fin de vigencia"]
["AGU","MEX","Aguascalientes","2022-01-01"]
["BCN","MEX","Baja California","2022-01-01"]
["BCS","MEX","Baja California Sur","2022-01-01"]
["CAM","MEX","Campeche","2022-01-01"]
["CHP","MEX","Chiapas","2022-01-01"]
["CHH","MEX","Chihuahua","2022-01-01"]
["COA","MEX","Coahuila","2022-01-01"]
["COL","MEX","Colima","2022-01-01"]
["CMX","MEX","Ciudad de México","2022-01-01"]
["DUR","MEX","Durango","2022-01-01"]
["GUA","MEX","Guanajuato","2022-01-01"]
["GRO","MEX","Guerrero","2022-01-01"]
["HID","MEX","Hidalgo","2022-01-01"]
["JAL","MEX","Jalisco","2022-01-01"]
["MEX","MEX","Estado de México","2022-01-01"]
["MIC","MEX","Michoacán","2022-01-01"]
["MOR","MEX","Morelos","2022-01-01"]
["NAY","MEX","Nayarit","2022-01-01"]
["NLE","MEX","Nuevo León","2022-01-01"]
["OAX","MEX","Oaxaca","2022-01-01"]
["PUE","MEX","Puebla","2022-01-01"]
["QUE","MEX","Querétaro","2022-01-01"]
["ROO","MEX","Quintana Roo","2022-01-01"]
["SLP","MEX","San Luis Potosí","2022-01-01"]
["SIN","MEX","Sinaloa","2022-01-01"]
["SON","MEX","Sonora","2022-01-01"]
["TAB","MEX","Tabasco","2022-01-01"]
["TAM","MEX","Tamaulipas","2022-01-01"]
["TLA","MEX","Tlaxcala","2022-01-01"]
["VER","MEX","Veracruz","2022-01-01"]
["YUC","MEX","Yucatán","2022-01-01"]
["ZAC","MEX","Zacatecas","2022-01-01"]
["AL","USA","Alabama","2022-01-01"]
["AK","USA","Alaska","2022-01-01"]
["AZ","USA","Arizona","2022-01-01"]
["AR","USA","Arkansas","2022-01-01"]
["CA","USA","California","2022-01-01"]
["NC","USA","Carolina del Norte","2022-01-01"]
["SC","USA","Carolina del Sur","2022-01-01"]
["CO","USA","Colorado","2022-01-01"]
["CT","USA","Connecticut","2022-01-01"]
["ND","USA","Dakota del Norte","2022-01-01"]
["SD","USA","Dakota del Sur","2022-01-01"]
["DE","USA","Delaware","2022-01-01"]
["FL","USA","Florida","2022-01-01"]
["GA","USA","Georgia","2022-01-01"]
["HI","USA","Hawái","2022-01-01"]
["ID","USA","Idaho","2022-01-01"]
["IL","USA","Illinois","2022-01-01"]
["IN","USA","Indiana","2022-01-01"]
["IA","USA","Iowa","2022-01-01"]
["KS","USA","Kansas","2022-01-01"]
["KY","USA","Kentucky","2022-01-01"]
["LA","USA","Luisiana","2022-01-01"]
["ME","USA","Maine","2022-01-01"]
["MD","USA","Maryland","2022-01-01"]
["MA","USA","Massachusetts","2022-01-01"]
["MI","USA","Míchigan","2022-01-01"]
["MN","USA","Minnesota","2022-01-01"]
["MS","USA","Misisipi","2022-01-01"]
["MO","USA","Misuri","2022-01-01"]
["MT","USA","Montana","2022-01-01"]
["NE","USA","Nebraska","2022-01-01"]
["NV","USA","Nevada","2022-01-01"]
["NJ","USA","Nueva Jersey","2022-01-01"]
["NY","USA","Nueva York","2022-01-01"]
["NH","USA","Nuevo Hampshire","2022-01-01"]
["NM","USA","Nuevo México","2022-01-01"]
["OH","USA","Ohio","2022-01-01"]
["OK","USA","Oklahoma","2022-01-01"]
["OR","USA","Oregón","2022-01-01"]
["PA","USA","Pensilvania","2022-01-01"]
["RI","USA","Rhode Island","2022-01-01"]
["TN","USA","Tennessee","2022-01-01"]
["TX","USA","Texas","2022-01-01"]
["UT","USA","Utah","2022-01-01"]
["VT","USA","Vermont","2022-01-01"]
["VA","USA","Virginia","2022-01-01"]
["WV","USA","Virginia Occidental","2022-01-01"]
["WA","USA","Washington","2022-01-01"]
["WI","USA","Wisconsin","2022-01-01"]
["WY","USA","Wyoming","2022-01-01"]
["ON","CAN","Ontario ","2022-01-01"]
["QC","CAN"," Quebec ","2022-01-01"]
["NS","CAN"," Nueva Escocia","2022-01-01"]
["NB","CAN","Nuevo Brunswick ","2022-01-01"]
["MB","CAN"," Manitoba","2022-01-01"]
["BC","CAN"," Columbia Británica","2022-01-01"]
["PE","CAN"," Isla del Príncipe Eduardo","2022-01-01"]
["SK","CAN"," Saskatchewan","2022-01-01"]
["AB","CAN"," Alberta","2022-01-01"]
["NL","CAN"," Terranova y Labrador","2022-01-01"]
["NT","CAN"," Territorios del Noroeste","2022-01-01"]
["YT","CAN"," Yukón","2022-01-01"]
["UN","CAN"," Nunavut","2022-01-01"]